Workbook

Sheet Market Data
A2: Stock Market Data Used in "Irrational Exuberance" Princeton University Press, 2000, 2005, updated | M2: Cyclically
A3: Robert J. Shiller | M3: Adjusted
A4: Source | D4: http://www.econ.yale.edu/~shiller/data.htm | M4: Price
G5: Consumer | M5: Earnings
D6: S&P | G6: Price | I6: Long | M6: Ratio
D7: Comp. | E7: Dividend | F7: Earnings | G7: Index | H7: Date | I7: Interest | J7: Real | K7: Real | L7: Real | M7: P/E10 or
A8: Year | B8: Month | C8: Date | D8: P | E8: D | F8: E | G8: CPI | H8: Fraction | I8: Rate GS10 | J8: Price | K8: Dividend | L8: Earnings | M8: CAPE
A9: 1920 | B9: 1 | C9: =EOMONTH(DATE(A9,B9,1),0) -> 1920-01-31 | D9: 8.83 | E9: 0.5283 | F9: 0.9192 | G9: 19.3 | H9: =#REF!+1/12 ->  | I9: 4.97 | J9: =D9*$G$1144/G9 -> 109.4503663 | K9: =E9*$G$1144/G9 -> 6.548429052 | L9: =F9*$G$1144/G9 -> 11.39374595
A10: 1920 | B10: 2 | C10: 1920-02-29 | D10: 8.1 | E10: 0.5267 | F10: 0.9083 | G10: 19.5 | H10: =H9+1/12 ->  | I10: =I9*11/12+I21*1/12 -> 4.98 | J10: 99.37204615 | K10: 6.461636631 | L10: 11.14316414 | M10: =J10/AVERAGE(L9:L9) -> 8.72163085
A11: 1920 | B11: 3 | C11: 1920-03-31 | D11: 8.67 | E11: 0.525 | F11: 0.8975 | G11: 19.7 | H11: =H10+1/12 ->  | I11: =I9*10/12+I21*2/12 -> 4.99 | J11: 105.2850472 | K11: 6.375392132 | L11: 10.89888464 | M11: =J11/AVERAGE(L9:L10) -> 9.343343591
A12: 1920 | B12: 4 | C12: 1920-04-30 | D12: 8.6 | E12: 0.5233 | F12: 0.8867 | G12: 20.3 | I12: =I9*9/12+I21*3/12 -> 5 | J12: 101.3482463 | K12: 6.166922941 | L12: 10.44947558 | M12: =J12/AVERAGE(L9:L11) -> 9.093390522
A13: 1920 | B13: 5 | C13: 1920-05-31 | D13: 8.06 | E13: 0.5217 | F13: 0.8758 | G13: 20.6 | I13: =I9*8/12+I21*4/12 -> 5.01 | J13: 93.60124951 | K13: 6.05853249 | L13: 10.17071642 | M13: =J13/AVERAGE(L9:L12) -> 8.531450197
A14: 1920 | B14: 6 | C14: 1920-06-30 | D14: 7.92 | E14: 0.52 | F14: 0.865 | G14: 20.9 | I14: =I9*7/12+I21*5/12 -> 5.02 | J14: 90.6552 | K14: 5.952109091 | L14: 9.901104545 | M14: =J14/AVERAGE(L9:L13) -> 8.385306188
A15: 1920 | B15: 7 | C15: 1920-07-31 | D15: 7.91 | E15: 0.5183 | F15: 0.8542 | G15: 20.8 | I15: =I9*6/12+I21*6/12 -> 5.03 | J15: 90.97602837 | K15: 5.96117263 | L15: 9.824490952 | M15: =J15/AVERAGE(L9:L14) -> 8.534724755
A16: 1920 | B16: 8 | C16: 1920-08-31 | D16: 7.6 | E16: 0.5167 | F16: 0.8433 | G16: 20.3 | I16: =I9*5/12+I21*7/12 -> 5.04 | J16: 89.5635665 | K16: 6.089144054 | L16: 9.938020478 | M16: =J16/AVERAGE(L9:L15) -> 8.497309851
A17: 1920 | B17: 9 | C17: 1920-09-30 | D17: 7.87 | E17: 0.515 | F17: 0.8325 | G17: 20 | I17: =I9*4/12+I21*8/12 -> 5.05 | J17: 94.1366115 | K17: 6.16014675 | L17: 9.957907125 | M17: =J17/AVERAGE(L9:L16) -> 8.995418847
A18: 1920 | B18: 1 | C18: 1920-01-31 | D18: 7.88 | E18: 0.5133 | F18: 0.8217 | G18: 19.9 | I18: =I9*3/12+I21*9/12 -> 5.06 | J18: 94.72987538 | K18: 6.170665613 | L18: 9.878114035 | M18: =J18/AVERAGE(L9:L17) -> 9.10110527
A19: 1920 | B19: 11 | C19: 1920-11-30 | D19: 7.48 | E19: 0.5117 | F19: 0.8108 | G19: 19.8 | I19: =I9*2/12+I21*10/12 -> 5.07 | J19: 90.3754 | K19: 6.182498955 | L19: 9.796306727 | M19: =J19/AVERAGE(L9:L18) -> 8.727232441
A20: 1920 | B20: 12 | C20: 1920-12-31 | D20: 6.81 | E20: 0.51 | F20: 0.8 | G20: 19.4 | I20: =I9*1/12+I21*11/12 -> 5.08 | J20: 83.97677784 | K20: 6.289009794 | L20: 9.865113402 | M20: =J20/AVERAGE(L9:L19) -> 8.149350005
A21: 1921 | B21: 1 | C21: 1921-01-31 | D21: 7.11 | E21: 0.5058 | F21: 0.7575 | G21: 19 | I21: 5.09 | J21: 89.52201 | K21: 6.3685278 | L21: 9.5376825 | M21: =J21/AVERAGE(L9:L20) -> 8.71847015
A22: 1921 | B22: 2 | C22: 1921-02-28 | D22: 7.06 | E22: 0.5017 | F22: 0.715 | G22: 18.4 | I22: =I21*11/12+I33*1/12 -> 5.024166667 | J22: 91.79112717 | K22: 6.522890723 | L22: 9.296126902 | M22: =J22/AVERAGE(L9:L21) -> 8.988641571
A23: 1921 | B23: 3 | C23: 1921-03-31 | D23: 6.88 | E23: 0.4975 | F23: 0.6725 | G23: 18.3 | I23: =I21*10/12+I33*2/12 -> 4.958333333 | J23: 89.9396459 | K23: 6.503629918 | L23: 8.791338934 | M23: =J23/AVERAGE(L9:L22) -> 8.864114594
A24: 1921 | B24: 4 | C24: 1921-04-30 | D24: 6.91 | E24: 0.4933 | F24: 0.63 | G24: 18.1 | I24: =I21*9/12+I33*3/12 -> 4.8925 | J24: 91.3299663 | K24: 6.51998153 | L24: 8.326755249 | M24: =J24/AVERAGE(L9:L23) -> 9.082004665
A25: 1921 | B25: 5 | C25: 1921-05-31 | D25: 7.12 | E25: 0.4892 | F25: 0.5875 | G25: 17.7 | I25: =I21*8/12+I33*4/12 -> 4.826666667 | J25: 96.23223051 | K25: 6.611911119 | L25: 7.940510593 | M25: =J25/AVERAGE(L9:L24) -> 9.673467793
A26: 1921 | B26: 6 | C26: 1921-06-30 | D26: 6.55 | E26: 0.485 | F26: 0.545 | G26: 17.6 | I26: =I21*7/12+I33*5/12 -> 4.760833333 | J26: 89.03124716 | K26: 6.592390057 | L26: 7.407943466 | M26: =J26/AVERAGE(L9:L25) -> 9.057124703
A27: 1921 | B27: 7 | C27: 1921-07-31 | D27: 6.53 | E27: 0.4808 | F27: 0.5025 | G27: 17.7 | I27: =I21*6/12+I33*6/12 -> 4.695 | J27: 88.25793051 | K27: 6.498378712 | L27: 6.791670763 | M27: =J27/AVERAGE(L9:L26) -> 9.103062126
A28: 1921 | B28: 8 | C28: 1921-08-31 | D28: 6.45 | E28: 0.4767 | F28: 0.46 | G28: 17.7 | I28: =I21*5/12+I33*7/12 -> 4.629166667 | J28: 87.17666949 | K28: 6.442964085 | L28: 6.217250847 | M28: =J28/AVERAGE(L9:L27) -> 9.135542411
A29: 1921 | B29: 9 | C29: 1921-09-30 | D29: 6.61 | E29: 0.4725 | F29: 0.4175 | G29: 17.5 | I29: =I21*4/12+I33*8/12 -> 4.563333333 | J29: 90.36021086 | K29: 6.459183 | L29: 5.707320429 | M29: =J29/AVERAGE(L9:L28) -> 9.637069537
A30: 1921 | B30: 1 | C30: 1921-01-31 | D30: 6.7 | E30: 0.4683 | F30: 0.375 | G30: 17.5 | I30: =I21*3/12+I33*9/12 -> 4.4975 | J30: 91.59053143 | K30: 6.40176804 | L30: 5.126335714 | M30: =J30/AVERAGE(L9:L29) -> 9.953759208
A31: 1921 | B31: 11 | C31: 1921-11-30 | D31: 7.06 | E31: 0.4642 | F31: 0.3325 | G31: 17.4 | I31: =I21*2/12+I33*10/12 -> 4.431666667 | J31: 97.06647931 | K31: 6.382189759 | L31: 4.571473707 | M31: =J31/AVERAGE(L9:L30) -> 10.76559169
A32: 1921 | B32: 12 | C32: 1921-12-31 | D32: 7.31 | E32: 0.46 | F32: 0.29 | G32: 17.3 | I32: =I21*1/12+I33*11/12 -> 4.365833333 | J32: 101.0846237 | K32: 6.361002312 | L32: 4.01019711 | M32: =J32/AVERAGE(L9:L31) -> 11.45680627
A33: 1922 | B33: 1 | C33: 1922-01-31 | D33: 7.3 | E33: 0.4642 | F33: 0.3233 | G33: 16.9 | I33: 4.3 | J33: 103.3356036 | K33: 6.571011941 | L33: 4.576493237 | M33: =J33/AVERAGE(L9:L32) -> 11.98431772
A34: 1922 | B34: 2 | C34: 1922-02-28 | D34: 7.46 | E34: 0.4683 | F34: 0.3567 | G34: 16.9 | I34: =I33*11/12+I45*1/12 -> 4.305 | J34: 105.6004935 | K34: 6.629049746 | L34: 5.049289012 | M34: =J34/AVERAGE(L9:L33) -> 12.48125714
A35: 1922 | B35: 3 | C35: 1922-03-31 | D35: 7.74 | E35: 0.4725 | F35: 0.39 | G35: 16.7 | I35: =I33*10/12+I45*2/12 -> 4.31 | J35: 110.8761952 | K35: 6.76860494 | L35: 5.58678503 | M35: =J35/AVERAGE(L9:L34) -> 13.31124003
A36: 1922 | B36: 4 | C36: 1922-04-30 | D36: 8.21 | E36: 0.4767 | F36: 0.4233 | G36: 16.7 | I36: =I33*9/12+I45*3/12 -> 4.315 | J36: 117.6089874 | K36: 6.828770317 | L36: 6.063810521 | M36: =J36/AVERAGE(L9:L35) -> 14.2938662
A37: 1922 | B37: 5 | C37: 1922-05-31 | D37: 8.53 | E37: 0.4808 | F37: 0.4567 | G37: 16.7 | I37: =I33*8/12+I45*4/12 -> 4.32 | J37: 122.1930162 | K37: 6.887503186 | L37: 6.542268521 | M37: =J37/AVERAGE(L9:L36) -> 14.99182375
A38: 1922 | B38: 6 | C38: 1922-06-30 | D38: 8.45 | E38: 0.485 | F38: 0.49 | G38: 16.7 | I38: =I33*7/12+I45*5/12 -> 4.325 | J38: 121.047009 | K38: 6.947668563 | L38: 7.019294012 | M38: =J38/AVERAGE(L9:L37) -> 14.95296825
A39: 1922 | B39: 7 | C39: 1922-07-31 | D39: 8.51 | E39: 0.4892 | F39: 0.5233 | G39: 16.8 | I39: =I33*6/12+I45*6/12 -> 4.33 | J39: 121.1808804 | K39: 6.966120643 | L39: 7.451698554 | M39: =J39/AVERAGE(L9:L38) -> 15.03611782
A40: 1922 | B40: 8 | C40: 1922-08-31 | D40: 8.83 | E40: 0.4933 | F40: 0.5567 | G40: 16.6 | I40: =I33*5/12+I45*7/12 -> 4.335 | J40: 127.2525343 | K40: 7.109136488 | L40: 8.022818331 | M40: =J40/AVERAGE(L9:L39) -> 15.82798283
A41: 1922 | B41: 9 | C41: 1922-09-30 | D41: 9.06 | E41: 0.4975 | F41: 0.59 | G41: 16.6 | I41: =I33*4/12+I45*8/12 -> 4.34 | J41: 130.567153 | K41: 7.169664307 | L41: 8.50271747 | M41: =J41/AVERAGE(L9:L40) -> 16.24133017
A42: 1922 | B42: 1 | C42: 1922-01-31 | D42: 9.26 | E42: 0.5017 | F42: 0.6233 | G42: 16.7 | I42: =I33*3/12+I45*9/12 -> 4.345 | J42: 132.6503317 | K42: 7.186897563 | L42: 8.928828485 | M42: =J42/AVERAGE(L9:L41) -> 16.47167838
A43: 1922 | B43: 11 | C43: 1922-11-30 | D43: 8.8 | E43: 0.5058 | F43: 0.6567 | G43: 16.8 | I43: =I33*2/12+I45*10/12 -> 4.35 | J43: 125.3104286 | K43: 7.202501679 | L43: 9.351290732 | M43: =J43/AVERAGE(L9:L42) -> 15.51065561
A44: 1922 | B44: 12 | C44: 1922-12-31 | D44: 8.78 | E44: 0.51 | F44: 0.69 | G44: 16.9 | I44: =I33*1/12+I45*11/12 -> 4.355 | J44: 124.2858355 | K44: 7.219336686 | L44: 9.76733787 | M44: =J44/AVERAGE(L9:L43) -> 15.31492411
A45: 1923 | B45: 1 | C45: 1923-01-31 | D45: 8.9 | E45: 0.5117 | F45: 0.7142 | G45: 16.8 | I45: 4.36 | J45: 126.7344107 | K45: 7.286516625 | L45: 10.17008046 | M45: =J45/AVERAGE(L9:L44) -> 15.52883693
A46: 1923 | B46: 2 | C46: 1923-02-28 | D46: 9.28 | E46: 0.5133 | F46: 0.7383 | G46: 16.8 | I46: =I45*11/12+I57*1/12 -> 4.335 | J46: 132.1455429 | K46: 7.309300339 | L46: 10.51326016 | M46: =J46/AVERAGE(L9:L45) -> 16.08486007
A47: 1923 | B47: 3 | C47: 1923-03-31 | D47: 9.43 | E47: 0.515 | F47: 0.7625 | G47: 16.8 | I47: =I45*10/12+I57*2/12 -> 4.31 | J47: 134.2815161 | K47: 7.333508036 | L47: 10.85786384 | M47: =J47/AVERAGE(L9:L46) -> 16.22543224
A48: 1923 | B48: 4 | C48: 1923-04-30 | D48: 9.1 | E48: 0.5167 | F48: 0.7867 | G48: 16.9 | I48: =I45*9/12+I57*3/12 -> 4.285 | J48: 128.8156154 | K48: 7.314178953 | L48: 11.13618073 | M48: =J48/AVERAGE(L9:L47) -> 15.44145903
A49: 1923 | B49: 5 | C49: 1923-05-31 | D49: 8.67 | E49: 0.5183 | F49: 0.8108 | G49: 16.9 | I49: =I45*8/12+I57*4/12 -> 4.26 | J49: 122.7287237 | K49: 7.336827852 | L49: 11.47732978 | M49: =J49/AVERAGE(L9:L48) -> 14.5896476
A50: 1923 | B50: 6 | C50: 1923-06-30 | D50: 8.34 | E50: 0.52 | F50: 0.835 | G50: 17 | I50: =I45*7/12+I57*5/12 -> 4.235 | J50: 117.3629329 | K50: 7.317592941 | L50: 11.75036559 | M50: =J50/AVERAGE(L9:L49) -> 13.82887148
A51: 1923 | B51: 7 | C51: 1923-07-31 | D51: 8.06 | E51: 0.5217 | F51: 0.8592 | G51: 17.2 | I51: =I45*6/12+I57*6/12 -> 4.21 | J51: 112.1038221 | K51: 7.256149378 | L51: 11.95032307 | M51: =J51/AVERAGE(L9:L50) -> 13.08934662
A52: 1923 | B52: 8 | C52: 1923-08-31 | D52: 8.1 | E52: 0.5233 | F52: 0.8833 | G52: 17.1 | I52: =I45*5/12+I57*7/12 -> 4.185 | J52: 113.319 | K52: 7.320967 | L52: 12.357367 | M52: =J52/AVERAGE(L9:L51) -> 13.11069559
A53: 1923 | B53: 9 | C53: 1923-09-30 | D53: 8.15 | E53: 0.525 | F53: 0.9075 | G53: 17.2 | I53: =I45*4/12+I57*8/12 -> 4.16 | J53: 113.3556017 | K53: 7.302047965 | L53: 12.62211148 | M53: =J53/AVERAGE(L9:L52) -> 12.98808593
A54: 1923 | B54: 1 | C54: 1923-01-31 | D54: 8.03 | E54: 0.5267 | F54: 0.9317 | G54: 17.3 | I54: =I45*3/12+I57*9/12 -> 4.135 | J54: 111.0409751 | K54: 7.283347647 | L54: 12.88379534 | M54: =J54/AVERAGE(L9:L53) -> 12.59795889
A55: 1923 | B55: 11 | C55: 1923-11-30 | D55: 8.27 | E55: 0.5283 | F55: 0.9558 | G55: 17.3 | I55: =I45*2/12+I57*10/12 -> 4.11 | J55: 114.359759 | K55: 7.305472873 | L55: 13.21705654 | M55: =J55/AVERAGE(L9:L54) -> 12.84555308
A56: 1923 | B56: 12 | C56: 1923-12-31 | D56: 8.55 | E56: 0.53 | F56: 0.98 | G56: 17.3 | I56: =I45*1/12+I57*11/12 -> 4.085 | J56: 118.2316734 | K56: 7.328980925 | L56: 13.55170058 | M56: =J56/AVERAGE(L9:L55) -> 13.14493173
A57: 1924 | B57: 1 | C57: 1924-01-31 | D57: 8.83 | E57: 0.5317 | F57: 0.9758 | G57: 17.3 | I57: 4.06 | J57: 122.1035879 | K57: 7.352488977 | L57: 13.49362186 | M57: =J57/AVERAGE(L9:L56) -> 13.43360874
A58: 1924 | B58: 2 | C58: 1924-02-29 | D58: 8.87 | E58: 0.5333 | F58: 0.9717 | G58: 17.2 | I58: =I57*11/12+I69*1/12 -> 4.043333333 | J58: 123.369839 | K58: 7.417489866 | L58: 13.51504763 | M58: =J58/AVERAGE(L9:L57) -> 13.44001592
A59: 1924 | B59: 3 | C59: 1924-03-31 | D59: 8.7 | E59: 0.535 | F59: 0.9675 | G59: 17.1 | I59: =I57*10/12+I69*2/12 -> 4.026666667 | J59: 121.713 | K59: 7.48465 | L59: 13.535325 | M59: =J59/AVERAGE(L9:L58) -> 13.13543045
A60: 1924 | B60: 4 | C60: 1924-04-30 | D60: 8.5 | E60: 0.5367 | F60: 0.9633 | G60: 17 | I60: =I57*9/12+I69*3/12 -> 4.01 | J60: 119.6145 | K60: 7.552600253 | L60: 13.55584092 | M60: =J60/AVERAGE(L9:L59) -> 12.79337801
A61: 1924 | B61: 5 | C61: 1924-05-31 | D61: 8.47 | E61: 0.5383 | F61: 0.9592 | G61: 17 | I61: =I57*8/12+I69*4/12 -> 3.993333333 | J61: 119.1923312 | K61: 7.575115924 | L61: 13.49814452 | M61: =J61/AVERAGE(L9:L60) -> 12.63888253
A62: 1924 | B62: 6 | C62: =EOMONTH(DATE(A62,B62,1),0) -> 1924-06-30 | D62: 8.63 | E62: 0.54 | F62: 0.955 | G62: 17 | I62: =I57*7/12+I69*5/12 -> 3.976666667 | J62: 121.4438982 | K62: 7.599038824 | L62: 13.43904088 | M62: =J62/AVERAGE(L9:L61) -> 12.77368172
A63: 1924 | B63: 7 | C63: 1924-07-31 | D63: 9.03 | E63: 0.5417 | F63: 0.9508 | G63: 17.1 | I63: =I57*6/12+I69*6/12 -> 3.96 | J63: 126.3297 | K63: 7.578383 | L63: 13.301692 | M63: =J63/AVERAGE(L9:L62) -> 13.18659357
A64: 1924 | B64: 8 | C64: 1924-08-31 | D64: 9.34 | E64: 0.5433 | F64: 0.9467 | G64: 17 | I64: =I57*5/12+I69*7/12 -> 3.943333333 | J64: 131.4352271 | K64: 7.645477394 | L64: 13.32224084 | M64: =J64/AVERAGE(L9:L63) -> 13.62329992
A65: 1924 | B65: 9 | C65: 1924-09-30 | D65: 9.25 | E65: 0.545 | F65: 0.9425 | G65: 17.1 | I65: =I57*4/12+I69*8/12 -> 3.926666667 | J65: 129.4075 | K65: 7.62455 | L65: 13.185575 | M65: =J65/AVERAGE(L9:L64) -> 13.3225194
A66: 1924 | B66: 1 | C66: 1924-01-31 | D66: 9.13 | E66: 0.5467 | F66: 0.9383 | G66: 17.2 | I66: =I57*3/12+I69*9/12 -> 3.91 | J66: 126.9860913 | K66: 7.603865948 | L66: 13.0504983 | M66: =J66/AVERAGE(L9:L65) -> 12.9917615
A67: 1924 | B67: 11 | C67: 1924-11-30 | D67: 9.64 | E67: 0.5483 | F67: 0.9342 | G67: 17.2 | I67: =I57*2/12+I69*10/12 -> 3.893333333 | J67: 134.0795093 | K67: 7.626119808 | L67: 12.99347278 | M67: =J67/AVERAGE(L9:L66) -> 13.63866198
A68: 1924 | B68: 12 | C68: 1924-12-31 | D68: 10.16 | E68: 0.55 | F68: 0.93 | G68: 17.3 | I68: =I57*1/12+I69*11/12 -> 3.876666667 | J68: 140.4951815 | K68: 7.605546243 | L68: 12.86028728 | M68: =J68/AVERAGE(L9:L67) -> 14.21376626
A69: 1925 | B69: 1 | C69: 1925-01-31 | D69: 10.58 | E69: 0.5542 | F69: 0.9567 | G69: 17.3 | I69: 3.86 | J69: 146.3030532 | K69: 7.66362496 | L69: 13.22950198 | M69: =J69/AVERAGE(L9:L68) -> 14.727445
A70: 1925 | B70: 2 | C70: 1925-02-28 | D70: 10.67 | E70: 0.5583 | F70: 0.9833 | G70: 17.2 | I70: =I69*11/12+I81*1/12 -> 3.845 | J70: 148.405432 | K70: 7.765206436 | L70: 13.67638812 | M70: =J70/AVERAGE(L9:L69) -> 14.85827556
A71: 1925 | B71: 3 | C71: 1925-03-31 | D71: 10.39 | E71: 0.5625 | F71: 1.01 | G71: 17.3 | I71: =I69*10/12+I81*2/12 -> 3.83 | J71: 143.6756827 | K71: 7.778399566 | L71: 13.96654855 | M71: =J71/AVERAGE(L9:L70) -> 14.29956705
A72: 1925 | B72: 4 | C72: 1925-04-30 | D72: 10.28 | E72: 0.5667 | F72: 1.037 | G72: 17.2 | I72: =I69*9/12+I81*3/12 -> 3.815 | J72: 142.9810535 | K72: 7.882039203 | L72: 14.42328331 | M72: =J72/AVERAGE(L9:L71) -> 14.14287179
A73: 1925 | B73: 5 | C73: 1925-05-31 | D73: 10.61 | E73: 0.5708 | F73: 1.063 | G73: 17.3 | I73: =I69*8/12+I81*4/12 -> 3.8 | J73: =D73*$G$1144/G73 -> 146.7179012 | K73: =E73*$G$1144/G73 -> 7.893174173 | L73: =F73*$G$1144/G73 -> 14.69944665 | M73: =J73/AVERAGE(L9:L72) -> 14.41638968
A74: 1925 | B74: 6 | C74: 1925-06-30 | D74: 10.8 | E74: 0.575 | F74: 1.09 | G74: 17.5 | H74: =H73+1/12 ->  | I74: =I69*7/12+I81*5/12 -> 3.785 | J74: 147.6384686 | K74: 7.860381429 | L74: 14.90054914 | M74: =J74/AVERAGE(L9:L73) -> 14.40834484
A75: 1925 | B75: 7 | C75: 1925-07-31 | D75: 11.1 | E75: 0.5792 | F75: 1.117 | G75: 17.7 | I75: =I69*6/12+I81*6/12 -> 3.77 | J75: 150.0249661 | K75: 7.828329763 | L75: 15.09710695 | M75: =J75/AVERAGE(L9:L74) -> 14.5411837
A76: 1925 | B76: 8 | C76: 1925-08-31 | D76: 11.25 | E76: 0.5833 | F76: 1.143 | G76: 17.7 | I76: =I69*5/12+I81*7/12 -> 3.755 | J76: 152.0523305 | K76: 7.88374439 | L76: 15.44851678 | M76: =J76/AVERAGE(L9:L75) -> 14.63647854
A77: 1925 | B77: 9 | C77: 1925-09-30 | D77: 11.51 | E77: 0.5875 | F77: 1.17 | G77: 17.7 | I77: =I69*4/12+I81*8/12 -> 3.74 | J77: 155.5664288 | K77: 7.940510593 | L77: 15.81344237 | M77: =J77/AVERAGE(L9:L76) -> 14.86824646
A78: 1925 | B78: 1 | C78: 1925-01-31 | D78: 11.89 | E78: 0.5917 | F78: 1.197 | G78: 17.7 | I78: =I69*3/12+I81*9/12 -> 3.725 | J78: 160.7024186 | K78: 7.997276797 | L78: 16.17836797 | M78: =J78/AVERAGE(L9:L77) -> 15.2461271
A79: 1925 | B79: 11 | C79: 1925-11-30 | D79: 12.26 | E79: 0.5958 | F79: 1.223 | G79: 18 | I79: =I69*2/12+I81*10/12 -> 3.71 | J79: 162.94153 | K79: 7.9184799 | L79: 16.2542815 | M79: =J79/AVERAGE(L9:L78) -> 15.34133232
A80: 1925 | B80: 12 | C80: 1925-12-31 | D80: 12.46 | E80: 0.6 | F80: 1.25 | G80: 17.9 | I80: =I69*1/12+I81*11/12 -> 3.695 | J80: 166.5247676 | K80: 8.018849162 | L80: 16.70593575 | M80: =J80/AVERAGE(L9:L79) -> 15.56244914
A81: 1926 | B81: 1 | C81: 1926-01-31 | D81: 12.65 | E81: 0.6075 | F81: 1.249 | G81: 17.9 | I81: 3.68 | J81: 169.0640698 | K81: 8.119084777 | L81: 16.69257101 | M81: =J81/AVERAGE(L9:L80) -> 15.67755105
A82: 1926 | B82: 2 | C82: 1926-02-28 | D82: 12.67 | E82: 0.615 | F82: 1.248 | G82: 17.9 | I82: =I81*11/12+I93*1/12 -> 3.651666667 | J82: 169.3313648 | K82: 8.219320391 | L82: 16.67920626 | M82: =J82/AVERAGE(L9:L81) -> 15.58535661
A83: 1926 | B83: 3 | C83: 1926-03-31 | D83: 11.81 | E83: 0.6225 | F83: 1.248 | G83: 17.8 | I83: =I81*10/12+I93*2/12 -> 3.623333333 | J83: 158.7244096 | K83: 8.366295084 | L83: 16.77290966 | M83: =J83/AVERAGE(L9:L82) -> 14.50419283
A84: 1926 | B84: 4 | C84: 1926-04-30 | D84: 11.48 | E84: 0.63 | F84: 1.247 | G84: 17.9 | I84: =I81*9/12+I93*3/12 -> 3.595 | J84: 153.427314 | K84: 8.41979162 | L84: 16.66584151 | M84: =J84/AVERAGE(L9:L83) -> 13.92126686
A85: 1926 | B85: 5 | C85: 1926-05-31 | D85: 11.56 | E85: 0.6375 | F85: 1.246 | G85: 17.8 | I85: =I81*8/12+I93*4/12 -> 3.566666667 | J85: 155.3644517 | K85: 8.567892556 | L85: 16.74603 | M85: =J85/AVERAGE(L9:L84) -> 14.00266673
A86: 1926 | B86: 6 | C86: 1926-06-30 | D86: 12.11 | E86: 0.645 | F86: 1.245 | G86: 17.7 | I86: =I81*7/12+I93*5/12 -> 3.538333333 | J86: 163.6758864 | K86: 8.717666949 | L86: 16.82712458 | M86: =J86/AVERAGE(L9:L85) -> 14.65483044
A87: 1926 | B87: 7 | C87: 1926-07-31 | D87: 12.62 | E87: 0.6525 | F87: 1.244 | G87: 17.5 | I87: =I81*6/12+I93*6/12 -> 3.51 | J87: 172.5182846 | K87: 8.919824143 | L87: 17.00576434 | M87: =J87/AVERAGE(L9:L86) -> 15.34685912
A88: 1926 | B88: 8 | C88: 1926-08-31 | D88: 13.12 | E88: 0.66 | F88: 1.243 | G88: 17.4 | I88: =I81*5/12+I93*7/12 -> 3.481666667 | J88: 180.3841655 | K88: 9.074203448 | L88: 17.08974983 | M88: =J88/AVERAGE(L9:L87) -> 15.94310293
A89: 1926 | B89: 9 | C89: 1926-09-30 | D89: 13.32 | E89: 0.6675 | F89: 1.242 | G89: 17.5 | I89: =I81*4/12+I93*8/12 -> 3.453333333 | J89: 182.0874446 | K89: 9.124877571 | L89: 16.97842389 | M89: =J89/AVERAGE(L9:L88) -> 15.99160673
A90: 1926 | B90: 1 | C90: 1926-01-31 | D90: 13.02 | E90: 0.675 | F90: 1.242 | G90: 17.6 | I90: =I81*3/12+I93*9/12 -> 3.425 | J90: 176.9750898 | K90: 9.174975852 | L90: 16.88195557 | M90: =J90/AVERAGE(L9:L89) -> 15.44895224
A91: 1926 | B91: 11 | C91: 1926-11-30 | D91: 13.19 | E91: 0.6825 | F91: 1.241 | G91: 17.7 | I91: =I81*2/12+I93*10/12 -> 3.396666667 | J91: 178.2729102 | K91: 9.224508051 | L91: 16.77306153 | M91: =J91/AVERAGE(L9:L90) -> 15.4728604
A92: 1926 | B92: 12 | C92: 1926-12-31 | D92: 13.49 | E92: 0.69 | F92: 1.24 | G92: 17.7 | I92: =I81*1/12+I93*11/12 -> 3.368333333 | J92: 182.327639 | K92: 9.325876271 | L92: 16.75954576 | M92: =J92/AVERAGE(L9:L91) -> 15.73835731
A93: 1927 | B93: 1 | C93: 1927-01-31 | D93: 13.4 | E93: 0.6967 | F93: 1.229 | G93: 17.5 | I93: 3.34 | J93: 183.1810629 | K93: 9.524048246 | L93: 16.80071091 | M93: =J93/AVERAGE(L9:L92) -> 15.7283886
A94: 1927 | B94: 2 | C94: 1927-02-28 | D94: 13.66 | E94: 0.7033 | F94: 1.218 | G94: 17.4 | I94: =I93*11/12+I105*1/12 -> 3.339166667 | J94: 187.8085138 | K94: 9.66952619 | L94: 16.74603 | M94: =J94/AVERAGE(L9:L93) -> 16.04218975
A95: 1927 | B95: 3 | C95: 1927-03-31 | D95: 13.87 | E95: 0.71 | F95: 1.208 | G95: 17.3 | I95: =I93*10/12+I105*2/12 -> 3.338333333 | J95: 191.798048 | K95: 9.818068786 | L95: 16.7045452 | M95: =J95/AVERAGE(L9:L94) -> 16.30138254
A96: 1927 | B96: 4 | C96: 1927-04-30 | D96: 14.21 | E96: 0.7167 | F96: 1.197 | G96: 17.3 | I96: =I93*9/12+I105*3/12 -> 3.3375 | J96: 196.4996584 | K96: 9.910718168 | L96: 16.55243428 | M96: =J96/AVERAGE(L9:L95) -> 16.6207914
A97: 1927 | B97: 5 | C97: 1927-05-31 | D97: 14.7 | E97: 0.7233 | F97: 1.186 | G97: 17.4 | I97: =I93*8/12+I105*4/12 -> 3.336666667 | J97: 202.1072586 | K97: 9.944502052 | L97: 16.30606862 | M97: =J97/AVERAGE(L9:L96) -> 17.01773834
A98: 1927 | B98: 6 | C98: 1927-06-30 | D98: 14.89 | E98: 0.73 | F98: 1.175 | G98: 17.6 | I98: =I93*7/12+I105*5/12 -> 3.335833333 | J98: 202.393171 | K98: 9.922566477 | L98: 15.97125426 | M98: =J98/AVERAGE(L9:L97) -> 16.97068906
A99: 1927 | B99: 7 | C99: 1927-07-31 | D99: 15.22 | E99: 0.7367 | F99: 1.164 | G99: 17.3 | I99: =I93*6/12+I105*6/12 -> 3.335 | J99: 210.4662069 | K99: 10.18728349 | L99: 16.0961015 | M99: =J99/AVERAGE(L9:L98) -> 17.5813535
A100: 1927 | B100: 8 | C100: 1927-08-31 | D100: 16.03 | E100: 0.7433 | F100: 1.153 | G100: 17.2 | I100: =I93*5/12+I105*7/12 -> 3.334166667 | J100: 222.9558645 | K100: 10.33830905 | L100: 16.0366882 | M100: =J100/AVERAGE(L9:L99) -> 18.55441998
A101: 1927 | B101: 9 | C101: 1927-09-30 | D101: 16.94 | E101: 0.75 | F101: 1.143 | G101: 17.3 | I101: =I93*4/12+I105*8/12 -> 3.333333333 | J101: 234.2508243 | K101: 10.37119942 | L101: 15.80570792 | M101: =J101/AVERAGE(L9:L100) -> 19.42375003
A102: 1927 | B102: 1 | C102: 1927-01-31 | D102: 16.68 | E102: 0.7567 | F102: 1.132 | G102: 17.4 | I102: =I93*3/12+I105*9/12 -> 3.3325 | J102: 229.329869 | K102: 10.40371174 | L102: 15.56363379 | M102: =J102/AVERAGE(L9:L101) -> 18.95241693
A103: 1927 | B103: 11 | C103: 1927-11-30 | D103: 17.06 | E103: 0.7633 | F103: 1.121 | G103: 17.3 | I103: =I93*2/12+I105*10/12 -> 3.331666667 | J103: 235.9102162 | K103: 10.55511536 | L103: 15.50148607 | M103: =J103/AVERAGE(L9:L102) -> 19.43705036
A104: 1927 | B104: 12 | C104: 1927-12-31 | D104: 17.46 | E104: 0.77 | F104: 1.11 | G104: 17.3 | I104: =I93*1/12+I105*11/12 -> 3.330833333 | J104: 241.4415225 | K104: 10.64776474 | L104: 15.34937514 | M104: =J104/AVERAGE(L9:L103) -> 19.83490928
A105: 1928 | B105: 1 | C105: 1928-01-31 | D105: 17.53 | E105: 0.7767 | F105: 1.133 | G105: 17.3 | I105: 3.33 | J105: 242.4095012 | K105: 10.74041412 | L105: 15.66742526 | M105: =J105/AVERAGE(L9:L104) -> 19.86043879
A106: 1928 | B106: 2 | C106: 1928-02-29 | D106: 17.32 | E106: 0.7833 | F106: 1.155 | G106: 17.1 | I106: =I105*11/12+I117*1/12 -> 3.3525 | J106: 242.3068 | K106: 10.958367 | L106: 16.15845 | M106: =J106/AVERAGE(L9:L105) -> 19.79414789
A107: 1928 | B107: 3 | C107: 1928-03-31 | D107: 18.25 | E107: 0.79 | F107: 1.177 | G107: 17.1 | I107: =I105*10/12+I117*2/12 -> 3.375 | J107: 255.3175 | K107: 11.0521 | L107: 16.46623 | M107: =J107/AVERAGE(L9:L106) -> 20.78911675
A108: 1928 | B108: 4 | C108: 1928-04-30 | D108: 19.4 | E108: 0.7967 | F108: 1.2 | G108: 17.1 | I108: =I105*9/12+I117*3/12 -> 3.3975 | J108: 271.406 | K108: 11.145833 | L108: 16.788 | M108: =J108/AVERAGE(L9:L107) -> 22.02331217
A109: 1928 | B109: 5 | C109: 1928-05-31 | D109: 20 | E109: 0.8033 | F109: 1.222 | G109: 17.2 | I109: =I105*8/12+I117*4/12 -> 3.42 | J109: 278.1732558 | K109: 11.17282882 | L109: 16.99638593 | M109: =J109/AVERAGE(L9:L108) -> 22.49096566
A110: 1928 | B110: 6 | C110: 1928-06-30 | D110: 19.02 | E110: 0.81 | F110: 1.245 | G110: 17.1 | I110: =I105*7/12+I117*5/12 -> 3.4425 | J110: 266.0898 | K110: 11.3319 | L110: 17.41755 | M110: =J110/AVERAGE(L9:L109) -> 21.43457606
A111: 1928 | B111: 7 | C111: 1928-07-31 | D111: 19.16 | E111: 0.8167 | F111: 1.268 | G111: 17.1 | I111: =I105*6/12+I117*6/12 -> 3.465 | J111: 268.0484 | K111: 11.425633 | L111: 17.73932 | M111: =J111/AVERAGE(L9:L110) -> 21.50736285
A112: 1928 | B112: 8 | C112: 1928-08-31 | D112: 19.78 | E112: 0.8233 | F112: 1.29 | G112: 17.1 | I112: =I105*5/12+I117*7/12 -> 3.4875 | J112: 276.7222 | K112: 11.517967 | L112: 18.0471 | M112: =J112/AVERAGE(L9:L111) -> 22.11243552
A113: 1928 | B113: 9 | C113: 1928-09-30 | D113: 21.17 | E113: 0.83 | F113: 1.312 | G113: 17.3 | I113: =I105*4/12+I117*8/12 -> 3.51 | J113: 292.744389 | K113: 11.47746069 | L113: 18.14268486 | M113: =J113/AVERAGE(L9:L112) -> 23.29371928
A114: 1928 | B114: 1 | C114: 1928-01-31 | D114: 21.6 | E114: 0.8367 | F114: 1.335 | G114: 17.2 | I114: =I105*3/12+I117*9/12 -> 3.5325 | J114: 300.4271163 | K114: 11.63737816 | L114: 18.56806483 | M114: =J114/AVERAGE(L9:L113) -> 23.80446324
A115: 1928 | B115: 11 | C115: 1928-11-30 | D115: 23.06 | E115: 0.8433 | F115: 1.357 | G115: 17.2 | I115: =I105*2/12+I117*10/12 -> 3.555 | J115: 320.733764 | K115: 11.72917533 | L115: 18.87405541 | M115: =J115/AVERAGE(L9:L114) -> 25.3009871
A116: 1928 | B116: 12 | C116: 1928-12-31 | D116: 23.15 | E116: 0.85 | F116: 1.38 | G116: 17.1 | I116: =I105*1/12+I117*11/12 -> 3.5775 | J116: 323.8685 | K116: 11.8915 | L116: 19.3062 | M116: =J116/AVERAGE(L9:L115) -> 25.43207277
A117: 1929 | B117: 1 | C117: 1929-01-31 | D117: 24.86 | E117: 0.86 | F117: 1.399 | G117: 17.1 | I117: 3.6 | J117: 347.7914 | K117: 12.0314 | L117: 19.57201 | M117: =J117/AVERAGE(L9:L116) -> 27.18076754
A118: 1929 | B118: 2 | C118: 1929-02-28 | D118: 24.99 | E118: 0.87 | F118: 1.418 | G118: 17.1 | I118: =I117*11/12+I129*1/12 -> 3.574166667 | J118: 349.6101 | K118: 12.1713 | L118: 19.83782 | M118: =J118/AVERAGE(L9:L117) -> 27.19079079
A119: 1929 | B119: 3 | C119: 1929-03-31 | D119: 25.43 | E119: 0.88 | F119: 1.438 | G119: 17 | I119: =I117*10/12+I129*2/12 -> 3.548333333 | J119: 357.8584394 | K119: 12.38361882 | L119: 20.23595894 | M119: =J119/AVERAGE(L9:L118) -> 27.69561709
A120: 1929 | B120: 4 | C120: 1929-04-30 | D120: 25.28 | E120: 0.89 | F120: 1.457 | G120: 16.9 | I120: =I117*9/12+I129*3/12 -> 3.5225 | J120: 357.8526107 | K120: 12.5984503 | L120: 20.62465402 | M120: =J120/AVERAGE(L9:L119) -> 27.5546337
A121: 1929 | B121: 5 | C121: 1929-05-31 | D121: 25.66 | E121: 0.9 | F121: 1.476 | G121: 17 | I121: =I117*8/12+I129*4/12 -> 3.496666667 | J121: 361.0950671 | K121: 12.66506471 | L121: 20.77070612 | M121: =J121/AVERAGE(L9:L120) -> 27.65906853
A122: 1929 | B122: 6 | C122: 1929-06-30 | D122: 26.15 | E122: 0.91 | F122: 1.495 | G122: 17.1 | I122: =I117*7/12+I129*5/12 -> 3.470833333 | J122: 365.8385 | K122: 12.7309 | L122: 20.91505 | M122: =J122/AVERAGE(L9:L121) -> 27.87661031
A123: 1929 | B123: 7 | C123: 1929-07-31 | D123: 28.48 | E123: 0.92 | F123: 1.514 | G123: 17.3 | I123: =I117*6/12+I129*6/12 -> 3.445 | J123: 393.8290127 | K123: 12.72200462 | L123: 20.93599457 | M123: =J123/AVERAGE(L9:L122) -> 29.8539865
A124: 1929 | B124: 8 | C124: 1929-08-31 | D124: 30.1 | E124: 0.93 | F124: 1.533 | G124: 17.3 | I124: =I117*5/12+I129*7/12 -> 3.419166667 | J124: 416.2308035 | K124: 12.86028728 | L124: 21.19873162 | M124: =J124/AVERAGE(L9:L123) -> 31.39189521
A125: 1929 | B125: 9 | C125: 1929-09-30 | D125: 31.3 | E125: 0.94 | F125: 1.552 | G125: 17.3 | I125: =I117*4/12+I129*8/12 -> 3.393333333 | J125: 432.8247225 | K125: 12.99856994 | L125: 21.46146867 | M125: =J125/AVERAGE(L9:L124) -> 32.47575821
A126: 1929 | B126: 1 | C126: =EOMONTH(DATE(A126,B126,1),0) -> 1929-01-31 | D126: 27.99 | E126: 0.95 | F126: 1.572 | G126: 17.3 | I126: =I117*3/12+I129*9/12 -> 3.3675 | J126: 387.0531624 | K126: 13.1368526 | L126: 21.73803399 | M126: =J126/AVERAGE(L9:L125) -> 28.89072004
A127: 1929 | B127: 11 | C127: 1929-11-30 | D127: 20.58 | E127: 0.96 | F127: 1.591 | G127: 17.3 | I127: =I117*2/12+I129*10/12 -> 3.341666667 | J127: 284.5857121 | K127: 13.27513526 | L127: 22.00077104 | M127: =J127/AVERAGE(L9:L126) -> 21.13077636
A128: 1929 | B128: 12 | C128: 1929-12-31 | D128: 21.4 | E128: 0.97 | F128: 1.61 | G128: 17.2 | I128: =I117*1/12+I129*11/12 -> 3.315833333 | J128: 297.6453837 | K128: 13.49140291 | L128: 22.39294709 | M128: =J128/AVERAGE(L9:L127) -> 21.98342606
A129: 1930 | B129: 1 | C129: 1930-01-31 | D129: 21.71 | E129: 0.9708 | F129: 1.557 | G129: 17.1 | I129: 3.29 | J129: 303.7229 | K129: 13.581492 | L129: 21.78243 | M129: =J129/AVERAGE(L9:L128) -> 22.31072429
A130: 1930 | B130: 2 | C130: 1930-02-28 | D130: 23.07 | E130: 0.9717 | F130: 1.503 | G130: 17 | I130: =I129*11/12+I141*1/12 -> 3.294166667 | J130: 324.6478253 | K130: 13.67404819 | L130: 21.15065806 | M130: 23.69711775
A131: 1930 | B131: 3 | C131: 1930-03-31 | D131: 23.94 | E131: 0.9725 | F131: 1.45 | G131: 16.9 | I131: =I129*10/12+I141*2/12 -> 3.298333333 | J131: 338.8841574 | K131: 13.76628417 | L131: 20.52556509 | M131: 24.58660779
A132: 1930 | B132: 4 | C132: 1930-04-30 | D132: 25.46 | E132: 0.9733 | F132: 1.397 | G132: 17 | I132: =I129*9/12+I141*3/12 -> 3.3025 | J132: 358.2806082 | K132: 13.69656386 | L132: 19.65899488 | M132: 25.84343686
A133: 1930 | B133: 5 | C133: 1930-05-31 | D133: 23.94 | E133: 0.9742 | F133: 1.343 | G133: 16.9 | I133: =I129*8/12+I141*4/12 -> 3.306666667 | J133: 338.8841574 | K133: 13.79034863 | L133: 19.01091994 | M133: 24.30976063
A134: 1930 | B134: 6 | C134: 1930-06-30 | D134: 21.52 | E134: 0.975 | F134: 1.29 | G134: 16.8 | I134: =I129*7/12+I141*5/12 -> 3.310833333 | J134: 306.4409571 | K134: 13.88382589 | L134: 18.36936964 | M134: 21.86689933
A135: 1930 | B135: 7 | C135: 1930-07-31 | D135: 21.06 | E135: 0.9758 | F135: 1.237 | G135: 16.6 | I135: =I129*6/12+I141*6/12 -> 3.315 | J135: 303.5037795 | K135: 14.06263001 | L135: 17.82688392 | M135: 21.54879759
A136: 1930 | B136: 8 | C136: 1930-08-31 | D136: 20.79 | E136: 0.9767 | F136: 1.183 | G136: 16.5 | I136: =I129*5/12+I141*7/12 -> 3.319166667 | J136: 301.42854 | K136: 14.16090693 | L136: 17.15199436 | M136: 21.30060224
A137: 1930 | B137: 9 | C137: 1930-09-30 | D137: 20.78 | E137: 0.9775 | F137: 1.13 | G137: 16.6 | I137: =I129*4/12+I141*8/12 -> 3.323333333 | J137: =D137*$G$1144/G137 -> 299.4685916 | K137: =E137*$G$1144/G137 -> 14.08712937 | L137: =F137*$G$1144/G137 -> 16.28486566 | M137: 21.07258179
A138: 1930 | B138: 1 | C138: 1930-01-31 | D138: 17.92 | E138: 0.9783 | F138: 1.077 | G138: 16.5 | H138: =H137+1/12 ->  | I138: =I129*3/12+I141*9/12 -> 3.3275 | J138: 259.8171927 | K138: 14.18410489 | L138: 15.61512927 | M138: 18.21487015
A139: 1930 | B139: 11 | C139: 1930-11-30 | D139: 16.62 | E139: 0.9792 | F139: 1.023 | G139: 16.4 | I139: =I129*2/12+I141*10/12 -> 3.331666667 | J139: 242.4381695 | K139: 14.28372176 | L139: 14.92263823 | M139: 16.93971138
A140: 1930 | B140: 12 | C140: 1930-12-31 | D140: 15.51 | E140: 0.98 | F140: 0.97 | G140: 16.1 | I140: =I129*1/12+I141*11/12 -> 3.335833333 | J140: 230.462223 | K140: 14.56176522 | L140: 14.41317578 | M140: 16.05500186
A141: 1931 | B141: 1 | C141: 1931-01-31 | D141: 15.98 | E141: 0.9667 | F141: 0.94 | G141: 15.9 | I141: 3.34 | J141: 240.4326679 | K141: 14.54482228 | L141: 14.14309811 | M141: 16.70547873
A142: 1931 | B142: 2 | C142: 1931-02-28 | D142: 17.2 | E142: 0.9533 | F142: 0.91 | G142: 15.7 | I142: =I141*11/12+I153*1/12 -> 3.368333333 | J142: 262.0852739 | K142: 14.52592393 | L142: 13.86613949 | M142: 18.16149244
A143: 1931 | B143: 3 | C143: 1931-03-31 | D143: 17.53 | E143: 0.94 | F143: 0.88 | G143: 15.6 | I143: =I141*10/12+I153*2/12 -> 3.396666667 | J143: 268.8259212 | K143: 14.41508077 | L143: 13.49496923 | M143: 18.57956103
A144: 1931 | B144: 4 | C144: 1931-04-30 | D144: 15.86 | E144: 0.9267 | F144: 0.85 | G144: 15.5 | I144: =I141*9/12+I153*3/12 -> 3.425 | J144: 244.7852865 | K144: 14.30280737 | L144: 13.11900968 | M144: 16.87231533
A145: 1931 | B145: 5 | C145: 1931-05-31 | D145: 14.33 | E145: 0.9133 | F145: 0.82 | G145: 15.3 | I145: =I141*8/12+I153*4/12 -> 3.453333333 | J145: 224.0621941 | K145: 14.28025135 | L145: 12.82142353 | M145: 15.40154
A146: 1931 | B146: 6 | C146: 1931-06-30 | D146: 13.87 | E146: 0.9 | F146: 0.79 | G146: 15.1 | I146: =I141*7/12+I153*5/12 -> 3.481666667 | J146: 219.7421344 | K146: 14.25868212 | L146: 12.5159543 | M146: 15.06247607
A147: 1931 | B147: 7 | C147: 1931-07-31 | D147: 14.33 | E147: 0.8867 | F147: 0.76 | G147: 15.1 | I147: =I141*6/12+I153*6/12 -> 3.51 | J147: 227.0299053 | K147: 14.04797048 | L147: 12.0406649 | M147: 15.5167501
A148: 1931 | B148: 8 | C148: 1931-08-31 | D148: 13.9 | E148: 0.8733 | F148: 0.73 | G148: 15.1 | I148: =I141*5/12+I153*7/12 -> 3.538333333 | J148: 220.2174238 | K148: 13.83567455 | L148: 11.5653755 | M148: 15.0062766
A149: 1931 | B149: 9 | C149: 1931-09-30 | D149: 11.83 | E149: 0.86 | F149: 0.7 | G149: 15 | I149: =I141*4/12+I153*8/12 -> 3.566666667 | J149: 188.671938 | K149: 13.715796 | L149: 11.16402 | M149: 12.81774526
A150: 1931 | B150: 1 | C150: 1931-01-31 | D150: 10.25 | E150: 0.8467 | F150: 0.67 | G150: 14.9 | I150: =I141*3/12+I153*9/12 -> 3.595 | J150: 164.5702852 | K150: 13.59430834 | L150: 10.75727718 | M150: 11.14592641
A151: 1931 | B151: 11 | C151: 1931-11-30 | D151: 10.39 | E151: 0.8333 | F151: 0.64 | G151: 14.7 | I151: =I141*2/12+I153*10/12 -> 3.623333333 | J151: 169.0877082 | K151: 13.56119222 | L151: 10.41541224 | M151: 11.4156003
A152: 1931 | B152: 12 | C152: 1931-12-31 | D152: 8.44 | E152: 0.82 | F152: 0.61 | G152: 14.6 | I152: =I141*1/12+I153*11/12 -> 3.651666667 | J152: 138.2940247 | K152: 13.43614932 | L152: 9.995184247 | M152: 9.306032868
A153: 1932 | B153: 1 | C153: 1932-01-31 | D153: 8.3 | E153: 0.7933 | F153: 0.5933 | G153: 14.3 | I153: 3.68 | J153: 138.8531958 | K153: 13.27135424 | L153: 9.925494105 | M153: 9.312406455
A154: 1932 | B154: 2 | C154: 1932-02-29 | D154: 8.23 | E154: 0.7667 | F154: 0.5767 | G154: 14.1 | I154: =I153*11/12+I165*1/12 -> 3.649166667 | J154: 139.635083 | K154: 13.00828896 | L154: 9.784635766 | M154: 9.336932251
A155: 1932 | B155: 3 | C155: 1932-03-31 | D155: 8.26 | E155: 0.74 | F155: 0.56 | G155: 14 | I155: =I153*10/12+I165*2/12 -> 3.618333333 | J155: 141.14511 | K155: 12.64496143 | L155: 9.56916 | M155: 9.413065028
A156: 1932 | B156: 4 | C156: 1932-04-30 | D156: 6.28 | E156: 0.7133 | F156: 0.5433 | G156: 13.9 | I156: =I153*9/12+I165*3/12 -> 3.5875 | J156: 108.083318 | K156: 12.27640617 | L156: 9.350583863 | M156: 7.192233196
A157: 1932 | B157: 5 | C157: 1932-05-31 | D157: 5.51 | E157: 0.6867 | F157: 0.5267 | G157: 13.7 | I157: =I153*8/12+I165*4/12 -> 3.556666667 | J157: 96.21545912 | K157: 11.99113535 | L157: 9.197220022 | M157: 6.39085729
A158: 1932 | B158: 6 | C158: 1932-06-30 | D158: 4.77 | E158: 0.66 | F158: 0.51 | G158: 13.6 | I158: =I153*7/12+I165*5/12 -> 3.525833333 | J158: 83.90605368 | K158: 11.60964265 | L158: 8.9710875 | M158: 5.565059372
A159: 1932 | B159: 7 | C159: 1932-07-31 | D159: 5.01 | E159: 0.6333 | F159: 0.4933 | G159: 13.6 | I159: =I153*6/12+I165*6/12 -> 3.495 | J159: 88.12774191 | K159: 11.13997983 | L159: 8.67732836 | M159: 5.838763672
A160: 1932 | B160: 8 | C160: 1932-08-31 | D160: 7.53 | E160: 0.6067 | F160: 0.4767 | G160: 13.5 | I160: =I153*5/12+I165*7/12 -> 3.464166667 | J160: 133.43662 | K160: 10.75112847 | L160: 8.4474418 | M160: 8.834653205
A161: 1932 | B161: 9 | C161: 1932-09-30 | D161: 8.26 | E161: 0.58 | F161: 0.46 | G161: 13.4 | I161: =I153*4/12+I165*8/12 -> 3.433333333 | J161: 147.4650403 | K161: 10.35468806 | L161: 8.212338806 | M161: 9.761168564
A162: 1932 | B162: 1 | C162: 1932-01-31 | D162: 7.12 | E162: 0.5533 | F162: 0.4433 | G162: 13.3 | I162: =I153*3/12+I165*9/12 -> 3.4025 | J162: 128.0684571 | K162: 9.952286143 | L162: 7.973700429 | M162: 8.478606608
A163: 1932 | B163: 11 | C163: 1932-11-30 | D163: 7.05 | E163: 0.5267 | F163: 0.4267 | G163: 13.2 | I163: =I153*2/12+I165*10/12 -> 3.371666667 | J163: 127.7700341 | K163: 9.545599568 | L163: 7.733258659 | M163: 8.463309567
A164: 1932 | B164: 12 | C164: 1932-12-31 | D164: 6.82 | E164: 0.5 | F164: 0.41 | G164: 13.1 | I164: =I153*1/12+I165*11/12 -> 3.340833333 | J164: 124.545174 | K164: 9.130877863 | L164: 7.487319847 | M164: 8.257073999
A165: 1933 | B165: 1 | C165: 1933-01-31 | D165: 7.09 | E165: 0.495 | F165: 0.4125 | G165: 12.9 | I165: 3.31 | J165: 131.4832256 | K165: 9.179717442 | L165: 7.649764535 | M165: 8.728046163
A166: 1933 | B166: 2 | C166: 1933-02-28 | D166: 6.25 | E166: 0.49 | F166: 0.415 | G166: 12.7 | I166: =I165*11/12+I177*1/12 -> 3.294166667 | J166: 117.7308071 | K166: 9.230095276 | L166: 7.817325591 | M166: 7.826051751
A167: 1933 | B167: 3 | C167: 1933-03-31 | D167: 6.23 | E167: 0.485 | F167: 0.4175 | G167: 12.6 | I167: =I165*10/12+I177*2/12 -> 3.278333333 | J167: 118.28545 | K167: 9.208417857 | L167: 7.926833929 | M167: 7.874681323
A168: 1933 | B168: 4 | C168: 1933-04-30 | D168: 6.89 | E168: 0.48 | F168: 0.42 | G168: 12.6 | I168: =I165*9/12+I177*3/12 -> 3.2625 | J168: 130.8164929 | K168: 9.113485714 | L168: 7.9743 | M168: 8.723101646
A169: 1933 | B169: 5 | C169: 1933-05-31 | D169: 8.87 | E169: 0.475 | F169: 0.4225 | G169: 12.6 | I169: =I165*8/12+I177*4/12 -> 3.246666667 | J169: 168.4096214 | K169: 9.018553571 | L169: 8.021766071 | M169: 11.24965125
A170: 1933 | B170: 6 | C170: 1933-06-30 | D170: 10.39 | E170: 0.47 | F170: 0.425 | G170: 12.7 | I170: =I165*7/12+I177*5/12 -> 3.230833333 | J170: 195.7156937 | K170: 8.853356693 | L170: 8.005694882 | M170: 13.09887552
A171: 1933 | B171: 7 | C171: 1933-07-31 | D171: 11.23 | E171: 0.465 | F171: 0.4275 | G171: 13.1 | I171: =I165*6/12+I177*6/12 -> 3.215 | J171: 205.0795168 | K171: 8.491716412 | L171: 7.806900573 | M171: 13.75430449
A172: 1933 | B172: 8 | C172: 1933-08-31 | D172: 10.67 | E172: 0.46 | F172: 0.43 | G172: 13.2 | I172: =I165*5/12+I177*7/12 -> 3.199166667 | J172: 193.376775 | K172: 8.336768182 | L172: 7.793065909 | M172: 12.99952705
A173: 1933 | B173: 9 | C173: 1933-09-30 | D173: 10.58 | E173: 0.455 | F173: 0.4325 | G173: 13.2 | I173: =I165*4/12+I177*8/12 -> 3.183333333 | J173: 191.7456682 | K173: 8.246151136 | L173: 7.838374432 | M173: 12.92292061
A174: 1933 | B174: 1 | C174: 1933-01-31 | D174: 9.55 | E174: 0.45 | F174: 0.435 | G174: 13.2 | I174: =I165*3/12+I177*9/12 -> 3.1675 | J174: 173.0785568 | K174: 8.155534091 | L174: 7.883682955 | M174: 11.69625357
A175: 1933 | B175: 11 | C175: 1933-11-30 | D175: 9.78 | E175: 0.445 | F175: 0.4375 | G175: 13.2 | I175: =I165*2/12+I177*10/12 -> 3.151666667 | J175: 177.2469409 | K175: 8.064917045 | L175: 7.928991477 | M175: 12.01176619
A176: 1933 | B176: 12 | C176: 1933-12-31 | D176: 9.97 | E176: 0.44 | F176: 0.44 | G176: 13.2 | I176: =I165*1/12+I177*11/12 -> 3.135833333 | J176: 180.6903886 | K176: 7.9743 | L176: 7.9743 | M176: 12.28180162
A177: 1934 | B177: 1 | C177: 1934-01-31 | D177: 10.54 | E177: 0.4408 | F177: 0.4442 | G177: 13.2 | I177: 3.12 | J177: 191.0207318 | K177: 7.988798727 | L177: 8.050418318 | M177: 13.02511983
A178: 1934 | B178: 2 | C178: 1934-02-28 | D178: 11.32 | E178: 0.4417 | F178: 0.4483 | G178: 13.3 | I178: =I177*11/12+I189*1/12 -> 3.0925 | J178: 203.6144571 | K178: 7.944921 | L178: 8.063636143 | M178: 13.9269229
A179: 1934 | B179: 3 | C179: 1934-03-31 | D179: 10.74 | E179: 0.4425 | F179: 0.4525 | G179: 13.3 | I179: =I177*10/12+I189*2/12 -> 3.065 | J179: 193.1819143 | K179: 7.959310714 | L179: 8.139182143 | M179: 13.25453763
A180: 1934 | B180: 4 | C180: 1934-04-30 | D180: 10.92 | E180: 0.4433 | F180: 0.4567 | G180: 13.3 | I180: =I177*9/12+I189*3/12 -> 3.0375 | J180: 196.4196 | K180: 7.973700429 | L180: 8.214728143 | M180: 13.51838928
A181: 1934 | B181: 5 | C181: 1934-05-31 | D181: 9.81 | E181: 0.4442 | F181: 0.4608 | G181: 13.3 | I181: =I177*8/12+I189*4/12 -> 3.01 | J181: 176.4538714 | K181: 7.989888857 | L181: 8.288475429 | M181: 12.18158324
A182: 1934 | B182: 6 | C182: 1934-06-30 | D182: 9.94 | E182: 0.445 | F182: 0.465 | G182: 13.4 | I182: =I177*7/12+I189*5/12 -> 2.9825 | J182: 177.4579299 | K182: 7.944545149 | L182: 8.301603358 | M182: 12.28772648
A183: 1934 | B183: 7 | C183: 1934-07-31 | D183: 9.47 | E183: 0.4458 | F183: 0.4692 | G183: 13.4 | I183: =I177*6/12+I189*6/12 -> 2.955 | J183: 169.0670619 | K183: 7.958827478 | L183: 8.376585582 | M183: 11.74152423
A184: 1934 | B184: 8 | C184: 1934-08-31 | D184: 9.1 | E184: 0.4467 | F184: 0.4733 | G184: 13.4 | I184: =I177*5/12+I189*7/12 -> 2.9275 | J184: 162.4614851 | K184: 7.974895097 | L184: 8.449782515 | M184: 11.31502598
A185: 1934 | B185: 9 | C185: 1934-09-30 | D185: 8.88 | E185: 0.4475 | F185: 0.4775 | G185: 13.6 | I185: =I177*4/12+I189*8/12 -> 2.9 | J185: 156.2024647 | K185: 7.871689522 | L185: 8.399400551 | M185: 10.90995408
A186: 1934 | B186: 1 | C186: 1934-01-31 | D186: 8.95 | E186: 0.4483 | F186: 0.4817 | G186: 13.5 | I186: =I177*3/12+I189*9/12 -> 2.8725 | J186: 158.5999667 | K186: 7.944174867 | L186: 8.536045133 | M186: 11.10835261
A187: 1934 | B187: 11 | C187: 1934-11-30 | D187: 9.2 | E187: 0.4492 | F187: 0.4858 | G187: 13.5 | I187: =I177*2/12+I189*10/12 -> 2.845 | J187: 163.0301333 | K187: 7.960123467 | L187: 8.608699867 | M187: 11.44880869
A188: 1934 | B188: 12 | C188: 1934-12-31 | D188: 9.26 | E188: 0.45 | F188: 0.49 | G188: 13.4 | I188: =I177*1/12+I189*11/12 -> 2.8175 | J188: 165.3179507 | K188: 8.033809701 | L188: 8.747926119 | M188: 11.63933757
A189: 1935 | B189: 1 | C189: 1935-01-31 | D189: 9.26 | E189: 0.45 | F189: 0.57 | G189: 13.6 | I189: 2.79 | J189: 162.8868044 | K189: 7.915665441 | L189: 10.02650956 | M189: 11.49590797
A190: 1935 | B190: 2 | C190: =EOMONTH(DATE(A190,B190,1),0) -> 1935-02-28 | D190: 8.98 | E190: 0.45 | F190: 0.65 | G190: 13.7 | I190: =I189*11/12+I201*1/12 -> 2.778333333 | J190: 156.8084978 | K190: 7.857886861 | L190: 11.35028102 | M190: 11.08781216
A191: 1935 | B191: 3 | C191: 1935-03-31 | D191: 8.41 | E191: 0.45 | F191: 0.73 | G191: 13.7 | I191: =I189*10/12+I201*2/12 -> 2.766666667 | J191: 146.8551745 | K191: 7.857886861 | L191: 12.74723869 | M191: 10.3982724
A192: 1935 | B192: 4 | C192: 1935-04-30 | D192: 9.04 | E192: 0.446667 | F192: 0.756667 | G192: 13.8 | I192: =I189*9/12+I201*3/12 -> 2.755 | J192: 156.7123304 | K192: 7.743166648 | L192: 13.11715143 | M192: 11.10421021
A193: 1935 | B193: 5 | C193: 1935-05-31 | D193: 9.75 | E193: 0.443333 | F193: 0.783333 | G193: 13.8 | I193: =I189*8/12+I201*4/12 -> 2.743333333 | J193: 169.0204891 | K193: 7.685370308 | L193: 13.57941813 | M193: =J193/AVERAGE(L73:L192) -> 11.98557668
A194: 1935 | B194: 6 | C194: 1935-06-30 | D194: 10.12 | E194: 0.44 | F194: 0.81 | G194: 13.7 | I194: =I189*7/12+I201*5/12 -> 2.731666667 | J194: 176.7151445 | K194: 7.683267153 | L194: 14.14419635 | M194: 12.53951932
A195: 1935 | B195: 7 | C195: 1935-07-31 | D195: 10.65 | E195: 0.44 | F195: 0.793333 | G195: 13.7 | I195: =I189*6/12+I201*6/12 -> 2.72 | J195: 185.9699891 | K195: 7.683267153 | L195: 13.85315768 | M195: 13.20213794
A196: 1935 | B196: 8 | C196: 1935-08-31 | D196: 11.37 | E196: 0.44 | F196: 0.776667 | G196: 13.7 | I196: =I189*5/12+I201*7/12 -> 2.708333333 | J196: 198.542608 | K196: 7.683267153 | L196: 13.56213648 | M196: 14.10505685
A197: 1935 | B197: 9 | C197: 1935-09-30 | D197: 11.61 | E197: 0.44 | F197: 0.76 | G197: 13.7 | I197: =I189*4/12+I201*8/12 -> 2.696666667 | J197: 202.733481 | K197: 7.683267153 | L197: 13.27109781 | M197: 14.4188917
A198: 1935 | B198: 1 | C198: 1935-01-31 | D198: 11.92 | E198: 0.45 | F198: 0.76 | G198: 13.7 | I198: =I189*3/12+I201*9/12 -> 2.685 | J198: 208.146692 | K198: 7.857886861 | L198: 13.27109781 | M198: 14.82623263
A199: 1935 | B199: 11 | C199: 1935-11-30 | D199: 13.04 | E199: 0.46 | F199: 0.76 | G199: 13.8 | I199: =I189*2/12+I201*10/12 -> 2.673333333 | J199: 226.0540696 | K199: 7.9743 | L199: 13.17493043 | M199: 16.12960516
A200: 1935 | B200: 12 | C200: 1935-12-31 | D200: 13.04 | E200: 0.47 | F200: 0.76 | G200: 13.8 | I200: =I189*1/12+I201*11/12 -> 2.661666667 | J200: 226.0540696 | K200: 8.147654348 | L200: 13.17493043 | M200: 16.15919271
A201: 1936 | B201: 1 | C201: 1936-01-31 | D201: 13.76 | E201: 0.48 | F201: 0.77 | G201: 13.8 | I201: 2.65 | J201: =D201*$G$1144/G201 -> 238.5355826 | K201: =E201*$G$1144/G201 -> 8.321008696 | L201: =F201*$G$1144/G201 -> 13.34828478 | M201: 17.08735985
... 944 more rows

Sheet EoC Exercise 1 Template
A1: ASAP Company WACC
A2: Debt, D | B2: 500000
A3: Equity, E | B3: 300000
A4: Cost of debt, rD | B4: 0.06
A5: Cost of equity, rE | B5: 0.11
A6: Corporate tax rate, TC | B6: 0.25
A8: V=D+E | B8: =B3+B2 -> 800000 | C8: =getformula(B8) -> 
A9: WACC

Sheet EoC Exercise 2 Template
A1: Elizabeth Company WACC
A2: E(rM) | B2: 0.1
A3: Cost of debt, rD | B3: 0.08
A4: Corporate tax rate, TC | B4: 0.25
A5: Equity beta, β | B5: 0.7
A6: Debt, D | B6: 1000000
A7: Risk-free rate, rf | B7: 0.04
A8: Equity, E | B8: 1000000
A10: Section a. | B10: Finding the company cost of equity.
A11: Cost of equity, rE
A13: Section b. | B13: Finding the company WACC.
A14: V=D+E
A15: WACC

Sheet EoC Exercise 3 Template
A1: Abby Company WACC
A2: E(rM) | B2: 0.1
A3: Cost of debt, rD | B3: 0.08
A4: Corporate tax rate, TC | B4: 0.3
A5: Cov(rAbby,rM) | B5: 0.13
A6: Debt, D | B6: 1500000
A7: Var(rM) | B7: 0.11
A8: Risk-free rate, rf | B8: 0.03
A9: Equity, E | B9: 3000000
A11: Section a. Finding the company cost of equity.
A12: Equity beta, β
A13: Cost of equity, rE
A15: Section b. Finding the company WACC.
A16: V=D+E
A17: WACC
A19: Section c.
A20: After the IPO, the company's equity is the number of shares multiplied in the share's market value.
A21: Therefore:
A22: Equity (new), E
A23: Finding the company WACC.
A24: V=D+E
A25: WACC

Sheet EoC Exercise 4 Template
A1: Ever-Lasting's WACC
A2: E(rM) | B2: 0.1
A3: Cost of debt, rD | B3: 0.07
A4: Corporate tax rate, TC | B4: 0.3
A5: βEver-Lasting | B5: 1
A6: Debt, D | B6: 1250000
A7: Equity, E | B7: 2000000
A9: Section a. Finding the company cost of equity.
A11: Cost of equity, rE
A13: Section b. Finding the company WACC.
A14: V=D+E
A15: WACC

Sheet EoC Exercise 5 Template
A1: Finding the expected return using the Gordon model
A2: P0 | B2: 22 | C2: Stock price today
A3: b | B3: 0.45 | C3: Dividend payout ratio
A4: g | B4: 0.06 | C4: Annual dividend growth rate
A5: EPS0 | B5: 0.55 | C5: Earnings per share
A7: Section a.
A8: E(rE)
A10: Section b.
A11: P/E Ratio

Sheet EoC Exercise 6 Template
A1: Finding the P/E Ratio and the WACC
A2: P0 | B2: 16 | C2: Stock price today
A3: b | B3: 0.55 | C3: Dividend payout ratio
A4: g | B4: 0.075 | C4: Annual dividend growth rate
A5: EPS0 | B5: 2.5 | C5: Earnings per share
A6: rD | B6: 0.1 | C6: Cost of debt
A7: Tc | B7: 0.3 | C7: Corporate tax rate
A8: D | B8: 2500000 | C8: Debt
A9: E | B9: 2000000 | C9: Equity
A11: Section a.
A12: E(rE)
A14: Section b.
A15: P/E Ratio
A17: Section c.
A18: V=E+D
A19: WACC

Sheet EoC Exercise 7 Template
A1: Calculating Cobra's WACC
A2: Year | B2: S&P 500 return | C2: Cobra return | D2: Risk-free rate | F2: S&P excess returns | G2: Cobra excess returns
A3: 2003 | B3: =VLOOKUP(DATE(A3,12,31),[1]SP500!A:B,2,1)/VLOOKUP(DATE(A3-1,12,31),[1]SP500!A:B,2,1)-1 -> 0.263803991 | C3: 0.3450418966 | D3: =VLOOKUP(DATE(A3,12,31),'[1]Risk-free rate'!A:C,3,1) -> 0.0126
A4: 2004 | B4: =VLOOKUP(DATE(A4,12,31),[1]SP500!A:B,2,1)/VLOOKUP(DATE(A4-1,12,31),[1]SP500!A:B,2,1)-1 -> 0.08993452443 | C4: 0.07642748439 | D4: =VLOOKUP(DATE(A4,12,31),'[1]Risk-free rate'!A:C,3,1) -> 0.0275
A5: 2005 | B5: =VLOOKUP(DATE(A5,12,31),[1]SP500!A:B,2,1)/VLOOKUP(DATE(A5-1,12,31),[1]SP500!A:B,2,1)-1 -> 0.03001023071 | C5: -0.01093898627 | D5: =VLOOKUP(DATE(A5,12,31),'[1]Risk-free rate'!A:C,3,1) -> 0.0438
A6: 2006 | B6: =VLOOKUP(DATE(A6,12,31),[1]SP500!A:B,2,1)/VLOOKUP(DATE(A6-1,12,31),[1]SP500!A:B,2,1)-1 -> 0.1361943175 | C6: 0.1273005438 | D6: =VLOOKUP(DATE(A6,12,31),'[1]Risk-free rate'!A:C,3,1) -> 0.05
A7: 2007 | B7: =VLOOKUP(DATE(A7,12,31),[1]SP500!A:B,2,1)/VLOOKUP(DATE(A7-1,12,31),[1]SP500!A:B,2,1)-1 -> 0.03529573309 | C7: 0.003749710749 | D7: =VLOOKUP(DATE(A7,12,31),'[1]Risk-free rate'!A:C,3,1) -> 0.0334
A8: 2008 | B8: =VLOOKUP(DATE(A8,12,31),[1]SP500!A:B,2,1)/VLOOKUP(DATE(A8-1,12,31),[1]SP500!A:B,2,1)-1 -> -0.3848579326 | C8: -0.5036922234 | D8: =VLOOKUP(DATE(A8,12,31),'[1]Risk-free rate'!A:C,3,1) -> 0.0037
A9: 2009 | B9: =VLOOKUP(DATE(A9,12,31),[1]SP500!A:B,2,1)/VLOOKUP(DATE(A9-1,12,31),[1]SP500!A:B,2,1)-1 -> 0.2345419098 | C9: 0.3273302207 | D9: =VLOOKUP(DATE(A9,12,31),'[1]Risk-free rate'!A:C,3,1) -> 0.0047
A10: 2010 | B10: =VLOOKUP(DATE(A10,12,31),[1]SP500!A:B,2,1)/VLOOKUP(DATE(A10-1,12,31),[1]SP500!A:B,2,1)-1 -> 0.1278271299 | C10: 0.1127093625 | D10: =VLOOKUP(DATE(A10,12,31),'[1]Risk-free rate'!A:C,3,1) -> 0.0029
A11: 2011 | B11: =VLOOKUP(DATE(A11,12,31),[1]SP500!A:B,2,1)/VLOOKUP(DATE(A11-1,12,31),[1]SP500!A:B,2,1)-1 -> -3.18294581e-05 | C11: 0.04122138075 | D11: =VLOOKUP(DATE(A11,12,31),'[1]Risk-free rate'!A:C,3,1) -> 0.0012
A12: 2012 | B12: =VLOOKUP(DATE(A12,12,31),[1]SP500!A:B,2,1)/VLOOKUP(DATE(A12-1,12,31),[1]SP500!A:B,2,1)-1 -> 0.1340569042 | C12: 0.1398778132 | D12: =VLOOKUP(DATE(A12,12,31),'[1]Risk-free rate'!A:C,3,1) -> 0.0016
A13: 2013 | B13: =VLOOKUP(DATE(A13,12,31),[1]SP500!A:B,2,1)/VLOOKUP(DATE(A13-1,12,31),[1]SP500!A:B,2,1)-1 -> 0.2960125003 | C13: 0.3881074237 | D13: =VLOOKUP(DATE(A13,12,31),'[1]Risk-free rate'!A:C,3,1) -> 0.0013
A14: 2014 | B14: =VLOOKUP(DATE(A14,12,31),[1]SP500!A:B,2,1)/VLOOKUP(DATE(A14-1,12,31),[1]SP500!A:B,2,1)-1 -> 0.1139063338 | C14: 0.13622261 | D14: =VLOOKUP(DATE(A14,12,31),'[1]Risk-free rate'!A:C,3,1) -> 0.001
A15: 2015 | B15: =VLOOKUP(DATE(A15,12,31),[1]SP500!A:B,2,1)/VLOOKUP(DATE(A15-1,12,31),[1]SP500!A:B,2,1)-1 -> 0.02624218399 | C15: 0.006008173358 | D15: =VLOOKUP(DATE(A15,12,31),'[1]Risk-free rate'!A:C,3,1) -> 0.001
A17: Section b.
B18: Market | C18: Cobra
A19: E(ri)
A20: Sigma(ri)
A21: bi
A24: Section b.
A25: Number of shares | B25: 1500000
A26: Share price | B26: 12
A27: E, value of equity
A28: Debt, 2015
A30: Secton c.
A31: Debt, 2014 | B31: 35000000
A32: Interest paid, 2015 | B32: 4323000
A33: rD
A34: rf (looking forward) | B34: 0.02
A35: rE, cost of equity
A36: TC | B36: 0.36
A38: Section d.
A39: WACC

Sheet EoC Exercise 10 Template
A1: GENERAL ELECTRIC COMPANY Income statements, 2012-2014
A2: (Thousand dollars) | B2: =J12 -> Dec 31, 2014 | C2: =K12 -> Dec 31, 2013 | D2: Dec 31, 2012
A3: Total Operating Revenue | B3: =J13 -> 148589000 | C3: 146045000 | D3: 146684000 | H3: General Electric Company (GE)
A4: Cost of Goods Sold | B4: =J14 -> 83859000 | C4: 79817000 | D4: 77167000 | H4: -NYSE  Watchlist
A5: Interest Expense | B5: =J32 -> 9482000 | C5: =K32 -> 10116000 | D5: 12407000 | H5: 27.27
A6: Income Before Tax | B6: =J33 -> 17229000 | C6: 16151000 | D6: 17381000 | H6: 0.04(0.15%) 4:00PM EDT
A7: Net Income | B7: =J37 -> 15457000 | C7: =K37 -> 15475000 | D7: 14847000 | H7: After Hours : 27.27 0.00 (0.00%) 4:01PM EDT - Nasdaq Real Time Price
H8: Add to Portfolio
A9: Tax rate | H9: Income Statement | N9: Get Income Statement for:
H10: View: Annual Data | Quarterly Data | N10: All numbers in thousands
H12: Period Ending | J12: Dec 31, 2014 | K12: Dec 31, 2013 | L12: Dec 31, 2012
H13: Total Revenue | J13: 148589000 | K13: 146045000 | L13: 146684000
H14: Cost of Revenue | J14: 83859000 | K14: 79817000 | L14: 77167000
H16: Gross Profit | J16: 64730000 | K16: 66228000 | L16: 69517000
I18: Operating Expenses
I19: Research Development | J19: - | K19: - | L19: -
I20: Selling General and Administrative | J20: 34026000 | K20: 35143000 | L20: 35897000
I21: Non Recurring | J21: 3993000 | K21: 4818000 | L21: 3832000
I22: Others | J22: - | K22: - | L22: -
I24: Total Operating Expenses | J24: - | K24: - | L24: -
H27: Operating Income or Loss | J27: 26711000 | K27: 26267000 | L27: 29788000
I29: Income from Continuing Operations
I30: Total Other Income/Expenses Net | J30: - | K30: - | L30: -
I31: Earnings Before Interest And Taxes | J31: 26711000 | K31: 26267000 | L31: 29788000
I32: Interest Expense | J32: 9482000 | K32: 10116000 | L32: 12407000
I33: Income Before Tax | J33: 17229000 | K33: 16151000 | L33: 17381000
I34: Income Tax Expense | J34: 1772000 | K34: 676000 | L34: 2534000
I35: Minority Interest | J35: -112000 | K35: -298000 | L35: -223000
I37: Net Income From Continuing Ops | J37: 15457000 | K37: 15475000 | L37: 14847000
I39: Non-recurring Events
I40: Discontinued Operations | J40: -112000 | K40: -2120000 | L40: -983000
I41: Extraordinary Items | J41: - | K41: - | L41: -
I42: Effect Of Accounting Changes | J42: - | K42: - | L42: -
I43: Other Items | J43: - | K43: - | L43: -
H46: Net Income | J46: 15233000 | K46: 13057000 | L46: 13641000
H47: Preferred Stock And Other Adjustments | J47: - | K47: - | L47: -
H49: Net Income Applicable To Common Shares | J49: 15233000 | K49: 13057000 | L49: 13641000
H51: Sign Up for a Free Trial to EDGAR Online Premium!
H52: Get the critical business and financial information you need for more than 15,000 U.S. public companies.
H53: Sign Up Now - Learn More

Sheet EoC Exercise 11 Template
A1: Calculating Amgen's WACC
A2: E(rM) | B2: 0.08
A3: rf | B3: 0.02
A4: Tax rate | B4: 0.07645478962
A5: Beta | B5: 0.6
A6: Outstanding shares | B6: 760000000
A7: Market value of stock | B7: 157.89
A8: Market value of equity | B8: =B7*B6 -> 1.199964e+11
A9: Book value per share | B9: 34.88
A10: Total book value of equity | B10: =B6*B9 -> 2.65088e+10
A11: Amgen's debt | B11: 43231000000
A12: Debt to equity ratio (book) | B12: =B11/B10 -> 1.630816936
A13: Amgen's total value | B13: =B11+B8 -> 163227400000
A15: Interest paid, 2014 | B15: 1071000000
A16: Debt, end-2014 | B16: 43231000000
A17: Debt, end-2013 | B17: 44029000000
A18: Average debt, 2013-2014
A20: Amgen's cost of debt
A21: Amgen's cost of equity
A23: Amgen's WACC

Sheet EoC Exercise 12 Template
A1: Calculating Amgen's WACC using Asset Beta
A2: Equity Beta | B2: ='[1]Exercise 11'!B5 -> 0.6
A3: E(rM) | B3: 0.08
A4: rf | B4: 0.02
A6: Cost of Debt | B6: ='[1]Exercise 11'!B20 -> 0.02454732982
A7: Beta Debt | B7: =(B6-B4)/(B3-B4) -> 0.07578883032 | C7: =getformula(B7) -> 
A9: Corporate Tax rate | B9: ='[1]Exercise 11'!B4 -> 0.07645478962 | C9: =getformula(B9) -> 
A11: Market value of equity | B11: ='[1]Exercise 11'!B8 -> 1.199964e+11 | C11: =getformula(B11) -> 
A12: Amgen's Debt | B12: ='[1]Exercise 11'!B11 -> 43231000000 | C12: =getformula(B12) -> 
A13: Amgen's total value | B13: =B11+B12 -> 163227400000 | C13: =getformula(B13) -> 
A15: Percentage of Equity | B15: =B11/B13 -> 0.7351486331 | C15: =getformula(B15) -> 
A16: Percentage of Debt | B16: =1-B15 -> 0.2648513669 | C16: =getformula(B16) -> 
A18: Asset Beta
A20: WACC

Sheet EoC Exercise 13 Template
A1: Calculating Boeing's WACC
A2: E(rM) | B2: 0.075 | K2: The Boeing Company (BA)
A3: rf | B3: 0.03
A4: Stock price | B4: =K5 -> 145.46 | K4: -NYSEWatchlist
A5: Stock beta | B5: =P13 -> 0.89 | K5: 145.46
A6: Outstanding shares (M) | B6: =LEFT(P23,6) -> 704.39 | K6: 3.97(2.81%)May 8, 4:02PM EDT
A7: Market value (M) | B7: =B6*B4 -> 102460.5694 | C7: =getformula(B7) ->  | K7: After Hours :145.45
K8: 0.01(0.01%)May 8, 7:53PM EDT
A9: Book value per share | B9: =$L$47 -> 11.39 | K9: Add to Portfolio
A10: Book value of equity (M) | B10: =B6*B9 -> 8023.0021 | C10: =getformula(B10) ->  | K10: Key Statistics | M10: Get Key Statistics for:
A11: Boeing's debt | B11: =LEFT(L44,4)*1000 -> 9040 | C11: =getformula(B11) ->  | K11: Data provided byCapital IQ, except where noted. | O11: Trading Information
A12: Market value, debt + equity | B12: =B11+B7 -> 111500.5694 | C12: =getformula(B12) ->  | K12: Valuation Measures | O12: Stock Price History
K13: Market Cap (intraday)5: | L13: 102.46B | O13: Beta: | P13: 0.89
B14: 2014 | C14: =B14-1 -> 2013 | D14: Average | K14: Enterprise Value (May 10, 2015)3: | L14: 99.04B | O14: 52-Week Change3: | P14: 0.097
A15: Income before tax | B15: =M128 -> 7137000 | C15: =N128 -> 6232000 | D15: =AVERAGE(B15:C15) -> 6684500 | K15: Trailing P/E (ttm, intraday): | L15: 18.21 | O15: S&P500 52-Week Change3: | P15: 0.1157
A16: Income tax expense | B16: =M129 -> 1691000 | C16: =N129 -> 1646000 | D16: =AVERAGE(B16:C16) -> 1668500 | K16: Forward P/E (fye Dec 31, 2016)1: | L16: 15.66 | O16: 52-Week High (Feb 20, 2015)3: | P16: 158.83
A17: Annual tax rate | B17: =B16/B15 -> 0.2369342861 | C17: =C16/C15 -> 0.2641206675 | D17: =D16/D15 -> 0.2496073005 | K17: PEG Ratio (5 yr expected)1: | L17: 1.37 | O17: 52-Week Low (Oct 15, 2014)3: | P17: 116.32
A18: Tax rate | B18: =D17 -> 0.2496073005 | C18: =getformula(B18) ->  | K18: Price/Sales (ttm): | L18: 1.06 | O18: 50-Day Moving Average3: | P18: 149.42
A19: Interest paid | B19: =M127 -> 333000 | K19: Price/Book (mrq): | L19: 12.42 | O19: 200-Day Moving Average3: | P19: 139.81
A20: Debt, end-year | B20: =M89 -> 89869000 | C20: =N89 -> 90533000 | D20: =AVERAGE(B20:C20) -> 90201000 | K20: Enterprise Value/Revenue (ttm)3: | L20: 1.07 | O20: Share Statistics
K21: Enterprise Value/EBITDA (ttm)6: | L21: 10.35 | O21: Avg Vol (3 month)3: | P21: 4220660
A22: Boeing's cost of debt | K22: Financial Highlights | O22: Avg Vol (10 day)3: | P22: 5390490
A23: Boeing's cost of equity | K23: Fiscal Year | O23: Shares Outstanding5: | P23: 704.39M
A24: Boeing's WACC | K24: Fiscal Year Ends: | L24: 1931-12-01 | O24: Float: | P24: 690.62M
K25: Most Recent Quarter (mrq): | L25: Mar 31, 2015 | O25: % Held by Insiders1: | P25: 0.0008
K26: Profitability | O26: % Held by Institutions1: | P26: 0.099
K27: Profit Margin (ttm): | L27: 0.0629 | O27: Shares Short (as of Mar 31, 2015)3: | P27: 15.50M
K28: Operating Margin (ttm): | L28: 0.0828 | O28: Short Ratio (as of Mar 31, 2015)3: | P28: 4.2
K29: Management Effectiveness | O29: Short % of Float (as of Mar 31, 2015)3: | P29: 0.027
K30: Return on Assets (ttm): | L30: 0.0505 | O30: Shares Short (prior month)3: | P30: 14.97M
K31: Return on Equity (ttm): | L31: 0.5134 | O31: Dividends & Splits
K32: Income Statement | O32: Forward Annual Dividend Rate4: | P32: 3.64
K33: Revenue (ttm): | L33: 92.45B | O33: Forward Annual Dividend Yield4: | P33: 0.025
K34: Revenue Per Share (ttm): | L34: 128.77 | O34: Trailing Annual Dividend Yield3: | P34: 3.28
K35: Qtrly Revenue Growth (yoy): | L35: 0.082 | O35: Trailing Annual Dividend Yield3: | P35: 0.023
K36: Gross Profit (ttm): | L36: 14.01B | O36: 5 Year Average Dividend Yield4: | P36: 0.022
K37: EBITDA (ttm)6: | L37: 9.57B | O37: Payout Ratio4: | P37: 0.39
K38: Net Income Avl to Common (ttm): | L38: 5.81B | O38: Dividend Date3: | P38: Jun 5, 2015
K39: Diluted EPS (ttm): | L39: 7.99 | O39: Ex-Dividend Date4: | P39: May 6, 2015
K40: Qtrly Earnings Growth (yoy): | L40: 0.384 | O40: Last Split Factor (new per old)2: | P40: 02:01:00
K41: Balance Sheet | O41: Last Split Date3: | P41: Jun 9, 1997
K42: Total Cash (mrq): | L42: 9.59B
K43: Total Cash Per Share (mrq): | L43: 13.87
K44: Total Debt (mrq): | L44: 9.04B
K45: Total Debt/Equity (mrq): | L45: 112.55
K46: Current Ratio (mrq): | L46: 1.2
K47: Book Value Per Share (mrq): | L47: 11.39
K48: Cash Flow Statement
K49: Operating Cash Flow (ttm): | L49: 7.83B
K50: Levered Free Cash Flow (ttm): | L50: 3.84B
K52: View Financials
K53: Income Statement-Balance Sheet-Cash Flow
K55: Period Ending | M55: Mar 31, 2015 | N55: Dec 31, 2014 | O55: Sep 30, 2014 | P55: Jun 30, 2014
K57: Assets
K58: Current Assets
L59: Cash And Cash Equivalents | M59: 8655000 | N59: 11733000 | O59: 6655000 | P59: 7533000
L60: Short Term Investments | M60: 976000 | N60: 1359000 | O60: 3422000 | P60: 3797000
L61: Net Receivables | M61: 8288000 | N61: 7937000 | O61: 8083000 | P61: 7946000
L62: Inventory | M62: 48502000 | N62: 46756000 | O62: 47058000 | P62: 46251000
L63: Other Current Assets | M63: - | N63: - | O63: - | P63: -
K65: Total Current Assets | M65: 66421000 | N65: 67785000 | O65: 65218000 | P65: 65527000
K66: Long Term Investments | M66: 4455000 | N66: 4525000 | O66: 4550000 | P66: 4376000
K67: Property Plant and Equipment | M67: 11172000 | N67: 11007000 | O67: 10707000 | P67: 10449000
K68: Goodwill | M68: 5105000 | N68: 5119000 | O68: 5131000 | P68: 5139000
K69: Intangible Assets | M69: 2809000 | N69: 2869000 | O69: 2954000 | P69: 3004000
K70: Accumulated Amortization | M70: - | N70: - | O70: - | P70: -
K71: Other Assets | M71: 1328000 | N71: 1317000 | O71: 1547000 | P71: 1578000
K72: Deferred Long Term Asset Charges | M72: 6485000 | N72: 6576000 | O72: 2546000 | P72: 2664000
K74: Total Assets | M74: 97775000 | N74: 99198000 | O74: 92653000 | P74: 92737000
K76: Liabilities
K77: Current Liabilities
L78: Accounts Payable | M78: 55123000 | N78: 55788000 | O78: 51625000 | P78: 51748000
L79: Short/Current Long Term Debt | M79: 133000 | N79: 929000 | O79: 1579000 | P79: 1591000
L80: Other Current Liabilities | M80: - | N80: - | O80: - | P80: -
K82: Total Current Liabilities | M82: 55256000 | N82: 56717000 | O82: 53204000 | P82: 53339000
K83: Long Term Debt | M83: 8905000 | N83: 8141000 | O83: 7301000 | P83: 7292000
K84: Other Liabilities | M84: 25584000 | N84: 25550000 | O84: 17511000 | P84: 17922000
K85: Deferred Long Term Liability Charges | M85: - | N85: - | O85: - | P85: -
K86: Minority Interest | M86: 124000 | N86: 125000 | O86: 126000 | P86: 123000
K87: Negative Goodwill | M87: - | N87: - | O87: - | P87: -
K89: Total Liabilities | M89: 89869000 | N89: 90533000 | O89: 78142000 | P89: 78676000
K91: Stockholders' Equity
K92: Misc Stocks Options Warrants | M92: - | N92: - | O92: - | P92: -
K93: Redeemable Preferred Stock | M93: - | N93: - | O93: - | P93: -
K94: Preferred Stock | M94: - | N94: - | O94: - | P94: -
K95: Common Stock | M95: 5061000 | N95: 5061000 | O95: 5061000 | P95: 5061000
K96: Retained Earnings | M96: 37516000 | N96: 36180000 | O96: 35880000 | P96: 34516000
K97: Treasury Stock | M97: -25513000 | N97: -23298000 | O97: -22349000 | P97: -21381000
K98: Capital Surplus | M98: 4657000 | N98: 4625000 | O98: 4572000 | P98: 4524000
K99: Other Stockholder Equity | M99: -13815000 | N99: -13903000 | O99: -8653000 | P99: -8659000
K101: Total Stockholder Equity | M101: 7906000 | N101: 8665000 | O101: 14511000 | P101: 14061000
K103: Net Tangible Assets | M103: -8000 | N103: 677000 | O103: 6426000 | P103: 5918000
K107: Period Ending | M107: Dec 31, 2014 | N107: Dec 31, 2013 | O107: Dec 31, 2012
K108: Total Revenue | M108: 90762000 | N108: 86623000 | O108: 81698000
K109: Cost of Revenue | M109: 76752000 | N109: 73268000 | O109: 68665000
K111: Gross Profit | M111: 14010000 | N111: 13355000 | O111: 13033000
L113: Operating Expenses
L114: Research Development | M114: 3047000 | N114: 3071000 | O114: 3298000
L115: Selling General and Administrative | M115: 3480000 | N115: 3742000 | O115: 3449000
L116: Non Recurring | M116: - | N116: - | O116: -
L117: Others | M117: - | N117: - | O117: -
L119: Total Operating Expenses | M119: - | N119: - | O119: -
K122: Operating Income or Loss | M122: 7473000 | N122: 6562000 | O122: 6290000
L124: Income from Continuing Operations
L125: Total Other Income/Expenses Net | M125: -13000 | N125: 76000 | O125: 66000
L126: Earnings Before Interest And Taxes | M126: 7470000 | N126: 6618000 | O126: 6352000
L127: Interest Expense | M127: 333000 | N127: 386000 | O127: 442000
L128: Income Before Tax | M128: 7137000 | N128: 6232000 | O128: 5910000
L129: Income Tax Expense | M129: 1691000 | N129: 1646000 | O129: 2007000
L130: Minority Interest | M130: - | N130: - | O130: -
L132: Net Income From Continuing Ops | M132: 5446000 | N132: 4586000 | O132: 3903000
L134: Non-recurring Events
L135: Discontinued Operations | M135: - | N135: -1000 | O135: -3000
L136: Extraordinary Items | M136: - | N136: - | O136: -
L137: Effect Of Accounting Changes | M137: - | N137: - | O137: -
L138: Other Items | M138: - | N138: - | O138: -
K141: Net Income | M141: 5446000 | N141: 4585000 | O141: 3900000
K142: Preferred Stock And Other Adjustments | M142: - | N142: - | O142: -
K144: Net Income Applicable To Common Shares | M144: 5446000 | N144: 4585000 | O144: 3900000

Sheet EoC Exercise 15 Template
A1: BRANDYWINE CORPORATION
A2: Risk-free rate, rf | B2: 0.04
A3: Expected return on the market, E(rM) | B3: 0.1
A4: Debt/Equity ratio of company | B4: =3/7 -> 0.4285714286 | C4: =getformula(B4) -> 
A5: Equity/(Debt+Equity) ratio | B5: =1/(1+B4) -> 0.7 | C5: =getformula(B5)&". Note that (E+D)/E=1+D/E, so that E/(E+D)=1/(1+D/E)" -> 
A6: Debt/(Debt+Equity) ratio | B6: =1-B5 -> 0.3 | C6: =getformula(B6) -> 
A7: Tax rate, TC | B7: 0.35
A9: Section a. | B9: Equity beta calculations
A10: Brandy division
A11: WACC = rE*E/(D+E)+rf*(1-Tc)*D/(E+D) | B11: 0.12
A12: Implied rE of Brandy division
A13: Implied beta of Brandy division
A15: Wine division
A16: WACC = rE*E/(D+E)+rf*(1-Tc)*D/(E+D) | B16: 0.1
A17: Implied rE of Wine division
A18: Implied beta of Wine division
A21: Section b.
A22: Korbell Brandy Corporation
A23: Equity beta | B23: 1.8
A24: rE
A25: Debt/Equity ratio of Korbell | B25: =2/3 -> 0.6666666667 | C25: =getformula(B25) -> 
A26: Bond beta of Korbell | B26: 0.2
A27: rd
A28: Korbell's Equity/(Debt+Equity) | B28: =1/(1+B25) -> 0.6 | C28: =getformula(B28) -> 
A29: Korbell's Debt/(Debt+Equity) | B29: =1-B28 -> 0.4 | C29: =getformula(B29) -> 
A30: Korbell's tax rate | B30: =B7 -> 0.35 | C30: =getformula(B30) -> 
A31: Korbell's WACC based on its asset beta

Sheet EoC Exercise 17 Template
A1: EVALUATION OF A RISKY PROJECT
A2: Year | B2: 0 | C2: 1 | D2: 2 | E2: 3
A3: Expected cash flow | B3: -100 | C3: 60 | D3: 50 | E3: 40
A5: b | B5: 1.6
A6: E(rM) | B6: 0.1
A7: rf | B7: 0.03
A9: Required rate of return
A10: NPV
A12: Explanation:

Sheet EoC Exercise 18 Template
A1: PRICE EXPECTATION OF A STOCK
A2: b | B2: 0.75 | E2: Type your explanation here.
A3: Stock price | B3: 50
A4: Year-end dividend, Div1 | B4: 3
A5: rf | B5: 0.02
A6: E(rM) - rf | B6: 0.05
A8: Cost of equity
A9: Year-end stock price, P1
A11: Section b.
A17: P1, year-end stock price | B17: 54
A18: P0, stock price today in equilibrium

Sheet EoC Risk-Free Rate DATA
A1: Series Description | B1: Market yield on U.S. Treasury securities at 1-year constant maturity, quoted on investment basis
A2: Unit: | B2: Percent:_Per_Year
A3: Multiplier: | B3: 1
A4: Currency: | B4: NA
A5: Unique Identifier: | B5: H15/H15/RIFLGFCY01_N.B
A6: Time Period | B6: RIFLGFCY01_N.B
A7: 1962-01-02 | B7: 3.22 | C7: =IF(ISNUMBER(B7),B7,B6)/100 -> 0.0322
A8: 1962-01-03 | B8: 3.24 | C8: =IF(ISNUMBER(B8),B8,B7)/100 -> 0.0324
A9: 1962-01-04 | B9: 3.24 | C9: 0.0324
A10: 1962-01-05 | B10: 3.26 | C10: 0.0326
A11: 1962-01-08 | B11: 3.31 | C11: 0.0331
A12: 1962-01-09 | B12: 3.32 | C12: 0.0332
A13: 1962-01-10 | B13: 3.33 | C13: 0.0333
A14: 1962-01-11 | B14: 3.33 | C14: 0.0333
A15: 1962-01-12 | B15: 3.3 | C15: 0.033
A16: 1962-01-15 | B16: 3.32 | C16: 0.0332
A17: 1962-01-16 | B17: 3.3 | C17: 0.033
A18: 1962-01-17 | B18: 3.3 | C18: 0.033
A19: 1962-01-18 | B19: 3.27 | C19: 0.0327
A20: 1962-01-19 | B20: 3.27 | C20: 0.0327
A21: 1962-01-22 | B21: 3.25 | C21: 0.0325
A22: 1962-01-23 | B22: 3.25 | C22: 0.0325
A23: 1962-01-24 | B23: 3.24 | C23: 0.0324
A24: 1962-01-25 | B24: 3.27 | C24: 0.0327
A25: 1962-01-26 | B25: 3.28 | C25: 0.0328
A26: 1962-01-29 | B26: 3.28 | C26: 0.0328
A27: 1962-01-30 | B27: 3.28 | C27: 0.0328
A28: 1962-01-31 | B28: 3.29 | C28: 0.0329
A29: 1962-02-01 | B29: 3.3 | C29: 0.033
A30: 1962-02-02 | B30: 3.3 | C30: 0.033
A31: 1962-02-05 | B31: 3.29 | C31: 0.0329
A32: 1962-02-06 | B32: 3.29 | C32: 0.0329
A33: 1962-02-07 | B33: 3.29 | C33: 0.0329
A34: 1962-02-08 | B34: 3.3 | C34: 0.033
A35: 1962-02-09 | B35: 3.28 | C35: 0.0328
A36: 1962-02-12 | B36: ND | C36: 0.0328
A37: 1962-02-13 | B37: 3.28 | C37: 0.0328
A38: 1962-02-14 | B38: 3.31 | C38: 0.0331
A39: 1962-02-15 | B39: 3.33 | C39: 0.0333
A40: 1962-02-16 | B40: 3.33 | C40: 0.0333
A41: 1962-02-19 | B41: 3.32 | C41: 0.0332
A42: 1962-02-20 | B42: 3.31 | C42: 0.0331
A43: 1962-02-21 | B43: 3.28 | C43: 0.0328
A44: 1962-02-22 | B44: ND | C44: 0.0328
A45: 1962-02-23 | B45: 3.24 | C45: 0.0324
A46: 1962-02-26 | B46: 3.22 | C46: 0.0322
A47: 1962-02-27 | B47: 3.23 | C47: 0.0323
A48: 1962-02-28 | B48: 3.21 | C48: 0.0321
A49: 1962-03-01 | B49: 3.15 | C49: 0.0315
A50: 1962-03-02 | B50: 3.17 | C50: 0.0317
A51: 1962-03-05 | B51: 3.18 | C51: 0.0318
A52: 1962-03-06 | B52: 3.18 | C52: 0.0318
A53: 1962-03-07 | B53: 3.14 | C53: 0.0314
A54: 1962-03-08 | B54: 3.11 | C54: 0.0311
A55: 1962-03-09 | B55: 3.12 | C55: 0.0312
A56: 1962-03-12 | B56: 3.13 | C56: 0.0313
A57: 1962-03-13 | B57: 3.11 | C57: 0.0311
A58: 1962-03-14 | B58: 3.1 | C58: 0.031
A59: 1962-03-15 | B59: 3.1 | C59: 0.031
A60: 1962-03-16 | B60: 3.06 | C60: 0.0306
A61: 1962-03-19 | B61: 3.03 | C61: 0.0303
A62: 1962-03-20 | B62: 3.02 | C62: 0.0302
A63: 1962-03-21 | B63: 3.01 | C63: 0.0301
A64: 1962-03-22 | B64: 2.94 | C64: 0.0294
A65: 1962-03-23 | B65: 2.94 | C65: 0.0294
A66: 1962-03-26 | B66: 2.95 | C66: 0.0295
A67: 1962-03-27 | B67: 2.95 | C67: 0.0295
A68: 1962-03-28 | B68: 2.96 | C68: 0.0296
A69: 1962-03-29 | B69: 2.96 | C69: 0.0296
A70: 1962-03-30 | B70: 2.97 | C70: 0.0297
A71: 1962-04-02 | B71: 2.95 | C71: 0.0295
A72: 1962-04-03 | B72: 2.93 | C72: =IF(ISNUMBER(B72),B72,B71)/100 -> 0.0293
A73: 1962-04-04 | B73: 2.88 | C73: 0.0288
A74: 1962-04-05 | B74: 2.89 | C74: 0.0289
A75: 1962-04-06 | B75: 2.89 | C75: 0.0289
A76: 1962-04-09 | B76: 2.9 | C76: 0.029
A77: 1962-04-10 | B77: 2.94 | C77: 0.0294
A78: 1962-04-11 | B78: 3 | C78: 0.03
A79: 1962-04-12 | B79: 3 | C79: 0.03
A80: 1962-04-13 | B80: 3 | C80: 0.03
A81: 1962-04-16 | B81: 3 | C81: 0.03
A82: 1962-04-17 | B82: 3 | C82: 0.03
A83: 1962-04-18 | B83: 3 | C83: 0.03
A84: 1962-04-19 | B84: 3 | C84: 0.03
A85: 1962-04-20 | B85: ND | C85: 0.03
A86: 1962-04-23 | B86: 3.03 | C86: 0.0303
A87: 1962-04-24 | B87: 3.08 | C87: 0.0308
A88: 1962-04-25 | B88: 3.08 | C88: 0.0308
A89: 1962-04-26 | B89: 3.04 | C89: 0.0304
A90: 1962-04-27 | B90: 3.07 | C90: 0.0307
A91: 1962-04-30 | B91: 3.07 | C91: 0.0307
A92: 1962-05-01 | B92: 3.06 | C92: 0.0306
A93: 1962-05-02 | B93: 3.06 | C93: 0.0306
A94: 1962-05-03 | B94: 3.05 | C94: 0.0305
A95: 1962-05-04 | B95: 3.05 | C95: 0.0305
A96: 1962-05-07 | B96: 3.04 | C96: 0.0304
A97: 1962-05-08 | B97: 3.01 | C97: 0.0301
A98: 1962-05-09 | B98: 3.01 | C98: 0.0301
A99: 1962-05-10 | B99: 2.99 | C99: 0.0299
A100: 1962-05-11 | B100: 3 | C100: 0.03
A101: 1962-05-14 | B101: 3 | C101: 0.03
A102: 1962-05-15 | B102: 3.04 | C102: 0.0304
A103: 1962-05-16 | B103: 3.04 | C103: 0.0304
A104: 1962-05-17 | B104: 3.06 | C104: 0.0306
A105: 1962-05-18 | B105: 3.05 | C105: 0.0305
A106: 1962-05-21 | B106: 3.05 | C106: 0.0305
A107: 1962-05-22 | B107: 3.05 | C107: 0.0305
A108: 1962-05-23 | B108: 3.04 | C108: 0.0304
A109: 1962-05-24 | B109: 3.02 | C109: 0.0302
A110: 1962-05-25 | B110: 3.01 | C110: 0.0301
A111: 1962-05-28 | B111: 2.98 | C111: 0.0298
A112: 1962-05-29 | B112: 2.97 | C112: 0.0297
A113: 1962-05-30 | B113: ND | C113: 0.0297
A114: 1962-05-31 | B114: 2.99 | C114: 0.0299
A115: 1962-06-01 | B115: 2.98 | C115: 0.0298
A116: 1962-06-04 | B116: 2.98 | C116: 0.0298
A117: 1962-06-05 | B117: 2.97 | C117: 0.0297
A118: 1962-06-06 | B118: 2.95 | C118: 0.0295
A119: 1962-06-07 | B119: 2.95 | C119: 0.0295
A120: 1962-06-08 | B120: 2.94 | C120: 0.0294
A121: 1962-06-11 | B121: 2.95 | C121: 0.0295
A122: 1962-06-12 | B122: 2.94 | C122: 0.0294
A123: 1962-06-13 | B123: 2.94 | C123: 0.0294
A124: 1962-06-14 | B124: 3 | C124: 0.03
A125: 1962-06-15 | B125: 3 | C125: 0.03
A126: 1962-06-18 | B126: 3.03 | C126: 0.0303
A127: 1962-06-19 | B127: 3.06 | C127: 0.0306
A128: 1962-06-20 | B128: 3.04 | C128: 0.0304
A129: 1962-06-21 | B129: 3.04 | C129: 0.0304
A130: 1962-06-22 | B130: 3.04 | C130: 0.0304
A131: 1962-06-25 | B131: 3.12 | C131: 0.0312
A132: 1962-06-26 | B132: 3.14 | C132: 0.0314
A133: 1962-06-27 | B133: 3.14 | C133: 0.0314
A134: 1962-06-28 | B134: 3.18 | C134: 0.0318
A135: 1962-06-29 | B135: 3.2 | C135: 0.032
A136: 1962-07-02 | B136: 3.21 | C136: =IF(ISNUMBER(B136),B136,B135)/100 -> 0.0321
A137: 1962-07-03 | B137: 3.23 | C137: 0.0323
A138: 1962-07-04 | B138: ND | C138: 0.0323
A139: 1962-07-05 | B139: 3.21 | C139: 0.0321
A140: 1962-07-06 | B140: 3.23 | C140: 0.0323
A141: 1962-07-09 | B141: 3.26 | C141: 0.0326
A142: 1962-07-10 | B142: 3.27 | C142: 0.0327
A143: 1962-07-11 | B143: 3.26 | C143: 0.0326
A144: 1962-07-12 | B144: 3.27 | C144: 0.0327
A145: 1962-07-13 | B145: 3.27 | C145: 0.0327
A146: 1962-07-16 | B146: 3.28 | C146: 0.0328
A147: 1962-07-17 | B147: 3.34 | C147: 0.0334
A148: 1962-07-18 | B148: 3.36 | C148: 0.0336
A149: 1962-07-19 | B149: 3.33 | C149: 0.0333
A150: 1962-07-20 | B150: 3.32 | C150: 0.0332
A151: 1962-07-23 | B151: 3.32 | C151: 0.0332
A152: 1962-07-24 | B152: 3.32 | C152: 0.0332
A153: 1962-07-25 | B153: 3.32 | C153: 0.0332
A154: 1962-07-26 | B154: 3.32 | C154: 0.0332
A155: 1962-07-27 | B155: 3.32 | C155: 0.0332
A156: 1962-07-30 | B156: 3.33 | C156: 0.0333
A157: 1962-07-31 | B157: 3.33 | C157: 0.0333
A158: 1962-08-01 | B158: 3.3 | C158: 0.033
A159: 1962-08-02 | B159: 3.26 | C159: 0.0326
A160: 1962-08-03 | B160: 3.27 | C160: 0.0327
A161: 1962-08-06 | B161: 3.26 | C161: 0.0326
A162: 1962-08-07 | B162: 3.28 | C162: 0.0328
A163: 1962-08-08 | B163: 3.28 | C163: 0.0328
A164: 1962-08-09 | B164: 3.28 | C164: 0.0328
A165: 1962-08-10 | B165: 3.28 | C165: 0.0328
A166: 1962-08-13 | B166: 3.26 | C166: 0.0326
A167: 1962-08-14 | B167: 3.24 | C167: 0.0324
A168: 1962-08-15 | B168: 3.2 | C168: 0.032
A169: 1962-08-16 | B169: 3.19 | C169: 0.0319
A170: 1962-08-17 | B170: 3.18 | C170: 0.0318
A171: 1962-08-20 | B171: 3.17 | C171: 0.0317
A172: 1962-08-21 | B172: 3.17 | C172: 0.0317
A173: 1962-08-22 | B173: 3.14 | C173: 0.0314
A174: 1962-08-23 | B174: 3.13 | C174: 0.0313
A175: 1962-08-24 | B175: 3.12 | C175: 0.0312
A176: 1962-08-27 | B176: 3.11 | C176: 0.0311
A177: 1962-08-28 | B177: 3.1 | C177: 0.031
A178: 1962-08-29 | B178: 3.1 | C178: 0.031
A179: 1962-08-30 | B179: 3.12 | C179: 0.0312
A180: 1962-08-31 | B180: 3.14 | C180: 0.0314
A181: 1962-09-03 | B181: ND | C181: 0.0314
A182: 1962-09-04 | B182: 3.15 | C182: 0.0315
A183: 1962-09-05 | B183: 3.16 | C183: 0.0316
A184: 1962-09-06 | B184: 3.09 | C184: 0.0309
A185: 1962-09-07 | B185: 3.1 | C185: 0.031
A186: 1962-09-10 | B186: 3.08 | C186: 0.0308
A187: 1962-09-11 | B187: 3.07 | C187: 0.0307
A188: 1962-09-12 | B188: 3.05 | C188: 0.0305
A189: 1962-09-13 | B189: 3.06 | C189: 0.0306
A190: 1962-09-14 | B190: 3.06 | C190: 0.0306
A191: 1962-09-17 | B191: 3.03 | C191: 0.0303
A192: 1962-09-18 | B192: 3.05 | C192: 0.0305
A193: 1962-09-19 | B193: 3.04 | C193: 0.0304
A194: 1962-09-20 | B194: 3.03 | C194: 0.0303
A195: 1962-09-21 | B195: 3.04 | C195: 0.0304
A196: 1962-09-24 | B196: 3.04 | C196: 0.0304
A197: 1962-09-25 | B197: 3.04 | C197: 0.0304
A198: 1962-09-26 | B198: 3.02 | C198: 0.0302
A199: 1962-09-27 | B199: 3.02 | C199: 0.0302
A200: 1962-09-28 | B200: 3.02 | C200: =IF(ISNUMBER(B200),B200,B199)/100 -> 0.0302
... 13534 more rows

Sheet EoC SP500 DATA
A1: Date | B1: GSPC
A2: 1951-01-02 | B2: 20.77
A3: 1951-01-03 | B3: 20.69
A4: 1951-01-04 | B4: 20.87
A5: 1951-01-05 | B5: 20.87
A6: 1951-01-08 | B6: 21
A7: 1951-01-09 | B7: 21.12
A8: 1951-01-10 | B8: 20.85
A9: 1951-01-11 | B9: 21.19
A10: 1951-01-12 | B10: 21.11
A11: 1951-01-15 | B11: 21.3
A12: 1951-01-16 | B12: 21.46
A13: 1951-01-17 | B13: 21.55
A14: 1951-01-18 | B14: 21.4
A15: 1951-01-19 | B15: 21.36
A16: 1951-01-22 | B16: 21.18
A17: 1951-01-23 | B17: 21.26
A18: 1951-01-24 | B18: 21.16
A19: 1951-01-25 | B19: 21.03
A20: 1951-01-26 | B20: 21.26
A21: 1951-01-29 | B21: 21.67
A22: 1951-01-30 | B22: 21.74
A23: 1951-01-31 | B23: 21.66
A24: 1951-02-01 | B24: 21.77
A25: 1951-02-02 | B25: 21.96
A26: 1951-02-05 | B26: 22.2
A27: 1951-02-06 | B27: 22.12
A28: 1951-02-07 | B28: 21.99
A29: 1951-02-08 | B29: 22.09
A30: 1951-02-09 | B30: 22.17
A31: 1951-02-13 | B31: 22.18
A32: 1951-02-14 | B32: 22.12
A33: 1951-02-15 | B33: 22
A34: 1951-02-16 | B34: 22.13
A35: 1951-02-19 | B35: 21.83
A36: 1951-02-20 | B36: 21.79
A37: 1951-02-21 | B37: 21.86
A38: 1951-02-23 | B38: 21.92
A39: 1951-02-26 | B39: 21.93
A40: 1951-02-27 | B40: 21.76
A41: 1951-02-28 | B41: 21.8
A42: 1951-03-01 | B42: 21.85
A43: 1951-03-02 | B43: 21.93
A44: 1951-03-05 | B44: 21.79
A45: 1951-03-06 | B45: 21.79
A46: 1951-03-07 | B46: 21.86
A47: 1951-03-08 | B47: 21.95
A48: 1951-03-09 | B48: 21.95
A49: 1951-03-12 | B49: 21.7
A50: 1951-03-13 | B50: 21.41
A51: 1951-03-14 | B51: 21.25
A52: 1951-03-15 | B52: 21.29
A53: 1951-03-16 | B53: 21.64
A54: 1951-03-19 | B54: 21.56
A55: 1951-03-20 | B55: 21.52
A56: 1951-03-21 | B56: 21.64
A57: 1951-03-22 | B57: 21.73
A58: 1951-03-26 | B58: 21.53
A59: 1951-03-27 | B59: 21.51
A60: 1951-03-28 | B60: 21.26
A61: 1951-03-29 | B61: 21.33
A62: 1951-03-30 | B62: 21.48
A63: 1951-04-02 | B63: 21.32
A64: 1951-04-03 | B64: 21.26
A65: 1951-04-04 | B65: 21.4
A66: 1951-04-05 | B66: 21.69
A67: 1951-04-06 | B67: 21.72
A68: 1951-04-09 | B68: 21.68
A69: 1951-04-10 | B69: 21.65
A70: 1951-04-11 | B70: 21.64
A71: 1951-04-12 | B71: 21.83
A72: 1951-04-13 | B72: 22.09
A73: 1951-04-16 | B73: 22.04
A74: 1951-04-17 | B74: 22.09
A75: 1951-04-18 | B75: 22.13
A76: 1951-04-19 | B76: 22.04
A77: 1951-04-20 | B77: 22.04
A78: 1951-04-23 | B78: 22.05
A79: 1951-04-24 | B79: 21.96
A80: 1951-04-25 | B80: 21.97
A81: 1951-04-26 | B81: 22.16
A82: 1951-04-27 | B82: 22.39
A83: 1951-04-30 | B83: 22.43
A84: 1951-05-01 | B84: 22.53
A85: 1951-05-02 | B85: 22.62
A86: 1951-05-03 | B86: 22.81
A87: 1951-05-04 | B87: 22.77
A88: 1951-05-07 | B88: 22.63
A89: 1951-05-08 | B89: 22.61
A90: 1951-05-09 | B90: 22.64
A91: 1951-05-10 | B91: 22.51
A92: 1951-05-11 | B92: 22.33
A93: 1951-05-14 | B93: 22.18
A94: 1951-05-15 | B94: 21.76
A95: 1951-05-16 | B95: 21.69
A96: 1951-05-17 | B96: 21.91
A97: 1951-05-18 | B97: 21.51
A98: 1951-05-21 | B98: 21.46
A99: 1951-05-22 | B99: 21.36
A100: 1951-05-23 | B100: 21.16
A101: 1951-05-24 | B101: 21.05
A102: 1951-05-25 | B102: 21.03
A103: 1951-05-28 | B103: 21.21
A104: 1951-05-29 | B104: 21.35
A105: 1951-05-31 | B105: 21.52
A106: 1951-06-01 | B106: 21.48
A107: 1951-06-04 | B107: 21.24
A108: 1951-06-05 | B108: 21.33
A109: 1951-06-06 | B109: 21.48
A110: 1951-06-07 | B110: 21.56
A111: 1951-06-08 | B111: 21.49
A112: 1951-06-11 | B112: 21.61
A113: 1951-06-12 | B113: 21.52
A114: 1951-06-13 | B114: 21.55
A115: 1951-06-14 | B115: 21.84
A116: 1951-06-15 | B116: 22.04
A117: 1951-06-18 | B117: 22.05
A118: 1951-06-19 | B118: 22.02
A119: 1951-06-20 | B119: 21.91
A120: 1951-06-21 | B120: 21.78
A121: 1951-06-22 | B121: 21.55
A122: 1951-06-25 | B122: 21.29
A123: 1951-06-26 | B123: 21.3
A124: 1951-06-27 | B124: 21.37
A125: 1951-06-28 | B125: 21.1
A126: 1951-06-29 | B126: 20.96
A127: 1951-07-02 | B127: 21.1
A128: 1951-07-03 | B128: 21.23
A129: 1951-07-05 | B129: 21.64
A130: 1951-07-06 | B130: 21.64
A131: 1951-07-09 | B131: 21.73
A132: 1951-07-10 | B132: 21.63
A133: 1951-07-11 | B133: 21.68
A134: 1951-07-12 | B134: 21.8
A135: 1951-07-13 | B135: 21.98
A136: 1951-07-16 | B136: 21.73
A137: 1951-07-17 | B137: 21.92
A138: 1951-07-18 | B138: 21.88
A139: 1951-07-19 | B139: 21.84
A140: 1951-07-20 | B140: 21.88
A141: 1951-07-23 | B141: 22.1
A142: 1951-07-24 | B142: 22.44
A143: 1951-07-25 | B143: 22.32
A144: 1951-07-26 | B144: 22.47
A145: 1951-07-27 | B145: 22.53
A146: 1951-07-30 | B146: 22.63
A147: 1951-07-31 | B147: 22.4
A148: 1951-08-01 | B148: 22.51
A149: 1951-08-02 | B149: 22.82
A150: 1951-08-03 | B150: 22.85
A151: 1951-08-06 | B151: 23.01
A152: 1951-08-07 | B152: 23.03
A153: 1951-08-08 | B153: 22.93
A154: 1951-08-09 | B154: 22.84
A155: 1951-08-10 | B155: 22.79
A156: 1951-08-13 | B156: 22.8
A157: 1951-08-14 | B157: 22.7
A158: 1951-08-15 | B158: 22.79
A159: 1951-08-16 | B159: 22.87
A160: 1951-08-17 | B160: 22.94
A161: 1951-08-20 | B161: 22.93
A162: 1951-08-21 | B162: 22.83
A163: 1951-08-22 | B163: 22.75
A164: 1951-08-23 | B164: 22.9
A165: 1951-08-24 | B165: 22.88
A166: 1951-08-27 | B166: 22.85
A167: 1951-08-28 | B167: 22.9
A168: 1951-08-29 | B168: 23.08
A169: 1951-08-30 | B169: 23.24
A170: 1951-08-31 | B170: 23.28
A171: 1951-09-04 | B171: 23.28
A172: 1951-09-05 | B172: 23.42
A173: 1951-09-06 | B173: 23.47
A174: 1951-09-07 | B174: 23.53
A175: 1951-09-10 | B175: 23.62
A176: 1951-09-11 | B176: 23.5
A177: 1951-09-12 | B177: 23.6
A178: 1951-09-13 | B178: 23.71
A179: 1951-09-14 | B179: 23.69
A180: 1951-09-17 | B180: 23.62
A181: 1951-09-18 | B181: 23.59
A182: 1951-09-19 | B182: 23.59
A183: 1951-09-20 | B183: 23.57
A184: 1951-09-21 | B184: 23.4
A185: 1951-09-24 | B185: 23.3
A186: 1951-09-25 | B186: 23.38
A187: 1951-09-26 | B187: 23.4
A188: 1951-09-27 | B188: 23.27
A189: 1951-09-28 | B189: 23.26
A190: 1951-10-01 | B190: 23.47
A191: 1951-10-02 | B191: 23.64
A192: 1951-10-03 | B192: 23.79
A193: 1951-10-04 | B193: 23.72
A194: 1951-10-05 | B194: 23.78
A195: 1951-10-08 | B195: 23.75
A196: 1951-10-09 | B196: 23.65
A197: 1951-10-10 | B197: 23.61
A198: 1951-10-11 | B198: 23.7
A199: 1951-10-15 | B199: 23.85
A200: 1951-10-16 | B200: 23.77
... 15984 more rows
